Cogmind - Beta 15 @@@ ROGUE MODE // 2025.07.02 @ 17:08:29 Player: EX-OCT Result: Escaped! Performance ------------- Evolutions (9) 4500 Regions Visited (35) 7000 Robots Destroyed (83) 415 Value Destroyed (2600) 2600 Prototype IDs (228) 4560 Alien Tech Used (13) 2600 Bonus (27620) 27620 TOTAL SCORE: 49295 Bonus ------- Follower Combat Kills 1020 Entered Garrisons 200 Network Hubs Disabled 600 Met Data Miner 300 Used Data Conduit 3000 Met Zhirov 300 Met Warlord at Base 500 MAIN.C Attacked Warlord 500 Built Enhanced Grunts 300 A7 Reached Mainframe 300 Found Hidden Lab 3000 Decrypted A0 Command 3000 Met Warlord at Research 2000 Pursued by Intercept 1500 Met MAIN.C 5000 Hacked MAIN.C 300 Met Warlord at Command 2000 Met Architect 300 Started Test 138-B 500 Win 3000 Cogmind --------- Core Integrity 513/1850 Matter 217/300 Energy 349/350 System Corruption 27% Temperature Cool (0) Movement Core (50) Location To Epsilon Eridani Parts ------- > --- POWER (2) -------- (None) > --- PROPULSION (9) --- (None) > --- UTILITY (11) ----- Advanced Signal Interpreter > --- WEAPON (4) ------- (None) > --- INVENTORY (5) ---- Molecular Scythe Peak State ------------ > --- POWER ------------ Micro Antimatter Reactor Light Quantum Reactor > --- PROPULSION ------- Improved Surge Thruster Improved Surge Thruster Field Propulsion Array Cooled Q-thruster Cooled Q-thruster Cooled Q-thruster Cooled Q-thruster > --- UTILITY ---------- Medium Storage Unit Structural Scanner Advanced Sensor Array Advanced Signal Interpreter Improved Reaction Control System Advanced Remote Shield Improved Hacking Suite Improved Hacking Suite Advanced Hacking Suite Quantum Router > --- WEAPON ----------- Drained L-Cannon > --- INVENTORY -------- Advanced Power Amplifier Transdimensional Reconstructor Transdimensional Reconstructor Subatomic Replicator Enhanced Hardcell Cannon Axe [Rating: 195] Favorites ----------- Power Improved Deuterium Engine Engine Improved Deuterium Engine Power Core Light Nuclear Core Reactor Light Quantum Reactor Propulsion Cooled Q-thruster Treads Light Treads Leg Aluminum Leg Hover Unit Hover Unit Flight Unit Cooled Q-thruster Utility Improved Hacking Suite Device Structural Scanner Storage Medium Storage Unit Processor Advanced Signal Interpreter Hackware Improved Hacking Suite Protection Experimental Utility Shielding Weapon Greatsword Energy Gun Improved Medium Laser Energy Cannon Potential Cannon Ballistic Gun Light Assault Rifle Ballistic Cannon Enhanced Hardcell Cannon Launcher Mini Grenade Launcher Special Weapon Guided Remote Datajack Impact Weapon Heavy Mace Slashing Weapon Greatsword Piercing Weapon Vortex Lance Special Melee Weapon Datajack Build | -11 -10 -10 -9 -8 -7 -7 -7 -7 -6 -6 -6 -6 -6 -6 -5 -5 -5 -5 -4 -4 -4 -4 -4 -3 -3 -3 -3 -3 -3 -2 -2 -2 -1 -1 -1 ------- Run | Yrd Mat Min Mat Mat Fac Low Low Dat Pro Fac Ext Cet Arc Hub Fac Upp Upp War Pro Fac Upp Upp Zhi Pro Res Gar Res Arm Lab Res Qua Sec Acc Com Ac0 Slots Evolved 18 | . . . 2 2 2 . . . . 2 . . . . 2 . . . . 2 . . . . 2 . . . . 2 . . 2 . . Power 1 | . . . . . . . . . . . . . . . . . . . . . . . . . 1 . . . . . . . . . . Propulsion 7 | . . . 1 2 . . . . . 1 . . . . 1 . . . . 1 . . . . . . . . . 1 . . . . . Utility 8 | . . . 1 . 2 . . . . 1 . . . . 1 . . . . 1 . . . . 1 . . . . 1 . . . . . Weapon 2 | . . . . . . . . . . . . . . . . . . . . . . . . . . . . . . . . . 2 . . Parts Attached 144 | 4 11 2 27 16 9 . . 1 . 7 4 1 4 1 . 1 . 6 . 10 1 . 1 . 3 . 2 2 5 11 1 . 3 7 4 Power 17 | . 2 . 3 2 2 . . . . . 1 . . . . . . . . 1 . . 1 . 1 . . . . 3 . . . 1 . Engine 7 | . 2 . 2 1 1 . . . . . 1 . . . . . . . . . . . . . . . . . . . . . . . . Core 5 | . . . 1 1 1 . . . . . . . . . . . . . . 1 . . . . 1 . . . . . . . . . . Reactor 5 | . . . . . . . . . . . . . . . . . . . . . . . 1 . . . . . . 3 . . . 1 . Propulsion 57 | 2 5 . 14 5 2 . . . . 3 1 . . 1 . 1 . 2 . 3 . . . . 1 . 1 1 . 7 1 . 2 3 2 Treads 3 | 2 . . 1 . . . . . . . . . . . . . . . . . . . . . . . . . . . . . . . . Leg 1 | . . . 1 . . . . . . . . . . . . . . . . . . . . . . . . . . . . . . . . Wheel . | . . . . . . . . . . . . . . . . . . . . . . . . . . . . . . . . . . . . Hover 3 | . . . 3 . . . . . . . . . . . . . . . . . . . . . . . . . . . . . . . . Flight 50 | . 5 . 9 5 2 . . . . 3 1 . . 1 . 1 . 2 . 3 . . . . 1 . 1 1 . 7 1 . 2 3 2 Utility 41 | 1 2 . 5 2 3 . . . . 4 2 . 4 . . . . 2 . 5 1 . . . 1 . 1 1 2 1 . . 1 1 2 Device 16 | 1 . . 2 . 1 . . . . 1 1 . . . . . . 2 . 2 1 . . . . . . . . 1 . . 1 1 2 Storage 2 | . . . 1 . . . . . . . . . . . . . . . . . . . . . . . 1 . . . . . . . . Processor 3 | . 1 . . . . . . . . 1 . . . . . . . . . 1 . . . . . . . . . . . . . . . Hackware 17 | . 1 . 1 2 2 . . . . 2 1 . 4 . . . . . . 2 . . . . . . . 1 1 . . . . . . Protection 3 | . . . 1 . . . . . . . . . . . . . . . . . . . . . 1 . . . 1 . . . . . . Artifact . | . . . . . . . . . . . . . . . . . . . . . . . . . . . . . . . . . . . . Weapon 29 | 1 2 2 5 7 2 . . 1 . . . 1 . . . . . 2 . 1 . . . . . . . . 3 . . . . 2 . Energy Gun 2 | . . . 2 . . . . . . . . . . . . . . . . . . . . . . . . . . . . . . . . Energy Cannon 3 | . . . . . . . . . . . . . . . . . . . . . . . . . . . . . 2 . . . . 1 . Ballistic Gun 10 | 1 2 . 3 4 . . . . . . . . . . . . . . . . . . . . . . . . . . . . . . . Ballistic Cannon 1 | . . . . . . . . . . . . . . . . . . . . . . . . . . . . . . . . . . 1 . Launcher 3 | . . 1 . 1 . . . . . . . . . . . . . 1 . . . . . . . . . . . . . . . . . Special Weapon 3 | . . 1 . . . . . . . . . 1 . . . . . . . . . . . . . . . . 1 . . . . . . Impact Weapon 2 | . . . . 2 . . . . . . . . . . . . . . . . . . . . . . . . . . . . . . . Slashing Weapon 3 | . . . . . 2 . . . . . . . . . . . . . . 1 . . . . . . . . . . . . . . . Piercing Weapon 1 | . . . . . . . . . . . . . . . . . . 1 . . . . . . . . . . . . . . . . . Special Melee Weapon 1 | . . . . . . . . 1 . . . . . . . . . . . . . . . . . . . . . . . . . . . Unidentified Prototypes 20 | . . . 2 1 1 . . . . . . . . . . . . 2 . . . . 1 . . . . 1 5 . . 4 . 2 1 Parts Lost 54 | . 1 . 13 2 1 . . 1 . . 3 . . 1 1 . . . . . . . . . 1 . 2 . . . . 2 . 3 23 Power 5 | . . . 2 . . . . . . . 1 . . . . . . . . . . . . . . . . . . . . . . . 2 Propulsion 27 | . 1 . 6 1 . . . 1 . . 1 . . 1 . . . . . . . . . . 1 . 2 . . . . 2 . 2 9 Utility 16 | . . . 2 1 1 . . . . . 1 . . . . . . . . . . . . . . . . . . . . . . 1 10 Weapon 6 | . . . 3 . . . . . . . . . . . 1 . . . . . . . . . . . . . . . . . . . 2 Highest Loss Streak 22 | . 1 . 9 1 1 . . 1 . . 2 . . 1 1 . . . . . . . . . 1 . 2 . . . . 2 . 2 22 To Critical Strikes . | . . . . . . . . . . . . . . . . . . . . . . . . . . . . . . . . . . . . Average Backups 7 | . 3 5 4 8 9 10 10 10 10 8 9 9 10 10 8 9 10 9 9 9 10 10 10 10 9 10 10 9 9 9 9 8 6 6 1 Power . | . . 1 . . . 1 1 1 1 1 1 1 1 1 1 2 2 1 1 1 1 1 1 1 . . . . . . 1 . . . . Propulsion . | . . 1 . 1 . . . . . . . 1 1 1 . . 1 1 1 1 2 2 1 1 1 1 1 . . . . . . . . Utility 2 | . . 1 1 1 2 5 5 5 5 3 4 4 4 4 3 3 2 2 3 2 2 2 2 2 2 2 2 2 4 3 2 1 1 1 . Weapon 2 | . . 1 1 3 3 2 2 2 2 2 2 1 2 2 1 2 2 1 2 2 3 3 3 3 3 4 4 3 1 2 2 1 1 1 . Tool/Special . | . . . . . . . . . . . . . . . . . . . . . . . . . . . . . . . . . . . . Unused Backups 21 | . . . 1 3 3 . . . . . . . . . . 1 . 1 . 1 . . 1 . . . . 3 1 . 1 2 . 2 1 Power . | . . . . . . . . . . . . . . . . . . . . . . . . . . . . . . . . . . . . Propulsion 3 | . . . 1 1 1 . . . . . . . . . . . . . . . . . . . . . . . . . . . . . . Utility 7 | . . . . 1 . . . . . . . . . . . 1 . . . 1 . . 1 . . . . . . . 1 1 . 1 . Weapon 6 | . . . . 1 2 . . . . . . . . . . . . 1 . . . . . . . . . 1 . . . . . . 1 Tool/Special 5 | . . . . . . . . . . . . . . . . . . . . . . . . . . . . 2 1 . . 1 . 1 . Average Slot Usage (%) 88 | . 92 99 80 94 98 92 92 90 84 87 92 93 93 93 83 89 94 98 94 89 89 89 89 89 86 85 83 80 80 84 95 94 78 78 48 Engine 3 | . 10 14 7 7 . . . . . . 2 6 6 6 5 5 5 5 5 1 . . . . . . . . . . . . . . . Core 2 | . . . 2 1 7 7 7 7 7 6 3 . . . . . . . . 3 5 5 2 . 4 4 4 4 4 3 . . . . . Reactor 1 | . . . . . . . . . . . . . . . . . . . . . . . 2 5 4 4 4 4 4 4 8 8 3 6 2 Flight 31 | . 21 28 19 43 38 38 38 36 30 36 40 40 40 40 32 36 41 40 35 35 36 36 36 36 31 28 26 23 23 26 34 34 27 27 17 Device 8 | . 14 14 12 . 6 7 7 7 7 6 3 . . . 2 5 5 5 5 10 10 10 10 10 9 9 9 9 6 10 13 12 11 14 9 Storage 4 | . . . . 9 7 7 7 7 7 6 6 6 6 6 5 5 5 5 5 5 5 5 5 5 4 4 4 4 4 4 4 4 3 3 2 Processor 3 | . 1 . . . . . . . . 2 6 6 6 6 5 5 5 5 5 5 5 5 5 5 4 4 4 4 4 4 4 4 3 3 3 Hackware 18 | . 10 14 15 16 23 23 23 23 23 21 21 26 26 26 23 23 23 23 23 21 21 21 21 21 19 19 19 19 19 17 17 17 15 15 9 Ballistic Gun 3 | . 25 14 8 12 6 . . . . . . . . . . . . . . . . . . . . . . . . . . . . . . Slashing Weapon 3 | . . . . . 2 7 7 7 7 6 5 5 6 6 5 5 5 5 5 4 5 5 5 5 4 4 4 4 4 4 4 4 3 1 1 Peak Build Rating 195 | 4 9 10 21 33 43 43 43 43 39 50 51 51 59 59 58 60 60 84 78 99 105 99 101 101 110 107 114 116 125 165 168 172 154 195 146 Average Rating 74 | 2 8 9 12 29 38 43 43 42 39 45 49 50 57 59 54 56 60 69 77 96 99 99 99 101 106 107 111 112 117 141 167 169 145 152 87 On Entrance 75 | . 4 9 9 20 32 43 43 43 39 39 50 51 51 59 55 55 60 60 77 78 99 99 99 101 101 107 107 106 110 125 164 168 148 154 142 Naked Turns . | . . . . . . . . . . . . . . . . . . . . . . . . . . . . . . . . . . . . Heaviest Build 58 | 3 7 9 13 23 24 21 21 21 21 21 26 25 25 25 25 24 24 34 25 27 22 22 29 29 37 37 37 37 40 56 48 51 38 58 50 Greatest Support 74 | 3 8 8 20 25 27 27 27 27 21 30 30 28 28 28 27 27 27 41 41 41 34 34 44 40 49 45 47 47 47 61 74 59 47 58 65 Greatest Overweight (x) 11 | . 1 1 2 . . . . . . . . . . 1 . . . 11 . . . . . . . . 1 . . . . 1 . 1 1 Average Overweight (x) . | . . . . . . . . . . . . . . . . . . . . . . . . . . . . . . . . . . . . Largest Inventory Capacity 10 | 5 5 5 10 10 10 10 10 10 10 10 10 10 10 10 10 10 10 10 10 10 10 10 10 10 10 10 10 10 10 10 10 10 10 10 10 Average Capacity 9 | 5 5 5 5 10 10 10 10 10 10 10 10 10 10 10 10 10 10 10 10 10 10 10 10 10 10 10 10 10 10 10 10 10 10 10 8 Most Carried 10 | . 5 5 8 10 10 10 10 10 10 10 10 10 10 10 10 10 10 10 10 10 10 10 10 10 10 10 10 10 10 10 10 10 10 10 3 Average Carried 8 | . 3 4 4 7 9 10 10 9 10 8 9 9 10 10 8 9 10 9 9 9 10 10 9 10 9 10 10 9 9 9 9 9 9 7 1 Final Capacity 10 | 5 5 5 10 10 10 10 10 10 10 10 10 10 10 10 10 10 10 10 10 10 10 10 10 10 10 10 10 10 10 10 10 10 10 10 5 Final Carried 10 | . 5 5 7 10 10 10 10 10 10 10 10 10 10 10 9 10 10 9 10 10 10 10 10 10 10 10 10 9 10 10 10 10 9 3 1 Class Distribution -------------------- 37% | Hacker-Sprinter 21% | Wizard-Scout 16% | Hacker-Scout 14% | Scavenger-Mutant 5% | Hacker-Mutant Dominant Class ---------------- Scavenger-Mutant | -10/Materials Scavenger-Mutant | -10/Mines Scavenger-Mutant | -9/Materials Hacker-Sprinter | -8/Materials Hacker-Sprinter | -7/Factory Hacker-Sprinter | -7/Lower Caves Hacker-Sprinter | -7/Lower Caves Hacker-Sprinter | -7/Data Miner Hacker-Sprinter | -6/Proximity Caves Hacker-Sprinter | -6/Factory Hacker-Sprinter | -6/Extension Hacker-Sprinter | -6/Cetus Hacker-Sprinter | -6/Archives Hacker-Sprinter | -6/Hub_04(d) Hacker-Sprinter | -5/Factory Hacker-Sprinter | -5/Upper Caves Hacker-Sprinter | -5/Upper Caves Hacker-Sprinter | -5/Warlord Hacker-Sprinter | -4/Proximity Caves Hacker-Scout | -4/Factory Hacker-Scout | -4/Upper Caves Hacker-Scout | -4/Upper Caves Hacker-Scout | -4/Zhirov Hacker-Scout | -3/Proximity Caves Hacker-Scout | -3/Research Hacker-Scout | -3/Garrison Hacker-Scout | -3/Research Hacker-Scout | -3/Armory Wizard-Scout | -3/Lab Wizard-Scout | -2/Research Wizard-Scout | -2/Quarantine Wizard-Scout | -2/Section 7 Wizard-Scout | -1/Access Wizard-Scout | -1/Command Mutant | -1/Access_0 Resources | -11 -10 -10 -9 -8 -7 -7 -7 -7 -6 -6 -6 -6 -6 -6 -5 -5 -5 -5 -4 -4 -4 -4 -4 -3 -3 -3 -3 -3 -3 -2 -2 -2 -1 -1 -1 ----------- Run | Yrd Mat Min Mat Mat Fac Low Low Dat Pro Fac Ext Cet Arc Hub Fac Upp Upp War Pro Fac Upp Upp Zhi Pro Res Gar Res Arm Lab Res Qua Sec Acc Com Ac0 Matter Collected 2832 | 303 312 75 381 310 88 102 . . 84 . 170 30 80 . 30 32 8 110 . 110 20 . . . . . 75 . . 197 49 80 90 96 . Remotely . | . . . . . . . . . . . . . . . . . . . . . . . . . . . . . . . . . . . . Salvage Created 2688 | 144 451 . 663 505 56 . . . . . 432 . 109 . . . . . . 50 . . . . . . . . . 149 49 80 . . . Parts 179 | 6 32 . 44 42 9 . . . . . 19 . 11 . . . . . . 5 . . . . . . . . . 5 1 5 . . . Haulers Intercepted . | . . . . . . . . . . . . . . . . . . . . . . . . . . . . . . . . . . . . Recyclers Shooed 1 | . 1 . . . . . . . . . . . . . . . . . . . . . . . . . . . . . . . . . . Parts Field Recycled . | . . . . . . . . . . . . . . . . . . . . . . . . . . . . . . . . . . . . Retrieved Matter . | . . . . . . . . . . . . . . . . . . . . . . . . . . . . . . . . . . . . Parts Self-Destructed 1 | . . . . . . . 1 . . . . . . . . . . . . . . . . . . . . . . . . . . . . Prevented . | . . . . . . . . . . . . . . . . . . . . . . . . . . . . . . . . . . . . Kills | -11 -10 -10 -9 -8 -7 -7 -7 -7 -6 -6 -6 -6 -6 -6 -5 -5 -5 -5 -4 -4 -4 -4 -4 -3 -3 -3 -3 -3 -3 -2 -2 -2 -1 -1 -1 ------- Run | Yrd Mat Min Mat Mat Fac Low Low Dat Pro Fac Ext Cet Arc Hub Fac Upp Upp War Pro Fac Upp Upp Zhi Pro Res Gar Res Arm Lab Res Qua Sec Acc Com Ac0 Combat Hostiles Destroyed 62 | . 13 1 20 21 . . . . . . 6 . . . . . . . . 1 . . . . . . . . . . . . . . . Melee 8 | . . . . 1 . . . . . . 6 . . . . . . . . 1 . . . . . . . . . . . . . . . Guns 44 | . 13 . 18 13 . . . . . . . . . . . . . . . . . . . . . . . . . . . . . . . AOE 9 | . . 1 1 7 . . . . . . . . . . . . . . . . . . . . . . . . . . . . . . . Classes Destroyed 13 | 2 4 1 2 . 1 . . . . . 2 . . . . . . . . 1 . . . . . . . . . . . . . . . Worker 1 | . . . 1 . . . . . . . . . . . . . . . . . . . . . . . . . . . . . . . . Builder 4 | . . . . . 4 . . . . . . . . . . . . . . . . . . . . . . . . . . . . . . Tunneler 2 | 2 . . . . . . . . . . . . . . . . . . . . . . . . . . . . . . . . . . . Recycler 3 | 1 . . . 1 . . . . . . . . . . . . . . . . . . . . . . . . . 1 . . . . . Operator 7 | . 1 . 2 . . . . . . . 1 . 3 . . . . . . . . . . . . . . . . . . . . . . Watcher 5 | . 2 . . . . . . . . . . . . . . . . . . . . . . . . . . . . . 1 2 . . . Swarmer 31 | . 6 . 9 16 . . . . . . . . . . . . . . . . . . . . . . . . . . . . . . . Grunt 19 | . 7 . 8 1 . . . . . . 3 . . . . . . . . . . . . . . . . . . . . . . . . Brawler 1 | . . . . . . . . . . . 1 . . . . . . . . . . . . . . . . . . . . . . . . Sentry 8 | . . . 3 4 . . . . . . 1 . . . . . . . . . . . . . . . . . . . . . . . . Hunter 1 | . . . . . . . . . . . 1 . . . . . . . . . . . . . . . . . . . . . . . . Programmer 1 | . . . . . . . . . . . . . . . . . . . . 1 . . . . . . . . . . . . . . . Assembled 1 | . . 1 . . . . . . . . . . . . . . . . . . . . . . . . . . . . . . . . . Best Kill Streak 8 | 3 4 1 5 8 3 . . . . . 3 . 2 . . . . . . 1 . . . . . . . . . 1 1 1 . . . Combat Bots Only 8 | . 4 1 5 8 . . . . . . 3 . . . . . . . . 1 . . . . . . . . . . . . . . . Max Kills in Single Turn 4 | 1 1 1 1 4 1 . . . . . 1 . 1 . . . . . . 1 . . . . . . . . . 1 1 1 . . . Gunslinging . | . . . . . . . . . . . . . . . . . . . . . . . . . . . . . . . . . . . . Exploded 4 | . . 1 1 4 . . . . . . . . . . . . . . . . . . . . . . . . . . . . . . . Melee 1 | . . . . 1 . . . . . . 1 . . . . . . . . 1 . . . . . . . . . . . . . . . Uniques/NPCs Destroyed . | . . . . . . . . . . . . . . . . . . . . . . . . . . . . . . . . . . . . Combat | -11 -10 -10 -9 -8 -7 -7 -7 -7 -6 -6 -6 -6 -6 -6 -5 -5 -5 -5 -4 -4 -4 -4 -4 -3 -3 -3 -3 -3 -3 -2 -2 -2 -1 -1 -1 -------- Run | Yrd Mat Min Mat Mat Fac Low Low Dat Pro Fac Ext Cet Arc Hub Fac Upp Upp War Pro Fac Upp Upp Zhi Pro Res Gar Res Arm Lab Res Qua Sec Acc Com Ac0 Hostile Shots Fired 724 | . 66 6 132 75 35 . 2 4 7 . 43 4 . 14 25 . 2 2 10 5 2 . . . 8 17 22 15 . 23 . 9 4 45 147 Missed 322 | . 25 4 35 34 24 . 1 2 3 . 15 3 . 11 18 . . 1 4 5 2 . . . 2 9 10 5 . 14 . 3 3 18 71 Hits 402 | . 41 2 97 41 11 . 1 2 4 . 28 1 . 3 7 . 2 1 6 . . . . . 6 8 12 10 . 9 . 6 1 27 76 Melee 10 | . . . . . . . . . . . . . . . . . . . . . . . . . . 1 . . . . . . . . 9 Projectile 392 | . 41 2 97 41 11 . 1 2 4 . 28 1 . 3 7 . 2 1 6 . . . . . 6 7 12 10 . 9 . 6 1 27 67 AOE 4 | . . . . . . . . . . . . . . . . . . . . . . . . . . 1 . 1 . . . . . 2 . Critical Strikes 17 | . . . 4 . 1 . . . 1 . . . . . . . . . . . . . . . . . . . . . . . . 5 6 Actively Blocked 1 | . . . . . . . . . . . . . . . . . . . . . . . . . . . . . . . . . . 1 . Part Disruptions 6 | . . . . . . . . . . . . . . . . . . . . . . . . . . . . . . . . . . 5 1 Damage Taken 8267 | . 426 77 1205 444 144 . 12 89 72 . 276 26 . 62 156 . 30 16 93 . . . . . 137 167 213 177 . 210 . 604 25 909 2697 Core 2686 | . 84 20 301 85 71 . 12 43 19 . 24 . . . 61 . 13 . 17 . . . . . . 23 22 22 . 48 . 293 25 133 1370 Absorbed by Shields 369 | . . . . . . . . . . . . 25 . . . . . 5 . . . . . . . . . . . . . . . 269 70 Redirected to Shielding 213 | . . . . . . . . . . . . . . . . . . . . . . . . . . 14 . 15 . 25 . . . 159 . Regen/Repaired (Parts) 535 | . . . . . . . . . . . 51 . . . 112 . . 4 . 1 . . . . . . . 51 . 130 . 126 . 60 . Core Remaining (%) 74 | 100 . 58 24 84 . . . . 79 . . . . 97 . . . . 90 . . . . 100 . . . . 87 . . 69 . . 27 Volleys Fired 233 | 21 54 5 106 34 . . . . . . . . . . . . . . . . . . . . . . . . . . . . . 7 6 Largest 2 | 1 2 1 2 2 . . . . . . . . . . . . . . . . . . . . . . . . . . . . . 1 1 Hottest 112 | 20 40 33 112 81 . . . . . . . . . . . . . . . . . . . . . . . . . . . . . 58 58 Shots Fired 366 | 21 90 5 169 68 . . . . . . . . . . . . . . . . . . . . . . . . . . . . . 7 6 Gun 344 | 21 90 . 168 65 . . . . . . . . . . . . . . . . . . . . . . . . . . . . . . . Cannon 11 | . . . . . . . . . . . . . . . . . . . . . . . . . . . . . . . . . . 5 6 Launcher 9 | . . 5 1 3 . . . . . . . . . . . . . . . . . . . . . . . . . . . . . . . Special 2 | . . . . . . . . . . . . . . . . . . . . . . . . . . . . . . . . . . 2 . Kinetic 284 | 21 90 . 111 51 . . . . . . . . . . . . . . . . . . . . . . . . . . . . . 5 6 Thermal 71 | . . . 57 14 . . . . . . . . . . . . . . . . . . . . . . . . . . . . . . . Explosive 9 | . . 5 1 3 . . . . . . . . . . . . . . . . . . . . . . . . . . . . . . . Electromagnetic . | . . . . . . . . . . . . . . . . . . . . . . . . . . . . . . . . . . . . Robot Hit Streak 25 | 12 11 . 21 25 . . . . . . . . . . . . . . . . . . . . . . . . . . . . . 3 2 Robot Miss Streak 6 | 1 6 . 5 2 . . . . . . . . . . . . . . . . . . . . . . . . . . . . . . 2 Penetration Max . | . . . . . . . . . . . . . . . . . . . . . . . . . . . . . . . . . . . . Secondary Targets 2 | . 1 . 1 . . . . . . . . . . . . . . . . . . . . . . . . . . . . . . . . Max Gunslinging Chain 1 | . 1 . 1 . . . . . . . . . . . . . . . . . . . . . . . . . . . . . . . . Shots Hit Robots 302 | 20 59 . 118 48 5 . . 2 . . 21 4 5 . . . . 4 . 1 . . . . . . . 2 . 1 2 3 . 4 3 Core Hits 118 | 4 29 1 46 23 1 . . . . . 5 1 2 . . . . . . 1 . . . . . . . . . 1 1 2 . . 1 Critical Kills . | . . . . . . . . . . . . . . . . . . . . . . . . . . . . . . . . . . . . Critical Parts Destroyed . | . . . . . . . . . . . . . . . . . . . . . . . . . . . . . . . . . . . . Critical Strikes 9 | . . . 3 1 . . . . . . 2 1 . . . . . . . . . . . . . . . . . . . 1 . . 1 Burn 4 | . . . 3 1 . . . . . . . . . . . . . . . . . . . . . . . . . . . . . . . Blast 1 | . . . . . . . . . . . . . . . . . . . . . . . . . . . . . . . . . . . 1 Sever 4 | . . . . . . . . . . . 2 1 . . . . . . . . . . . . . . . . . . . 1 . . . Melee Attacks 324 | . . . . 6 27 1 19 6 26 6 32 9 8 6 11 6 2 4 . 17 23 1 . 4 9 1 4 6 5 12 11 16 8 25 13 Impact 18 | . . . . 6 12 . . . . . . . . . . . . . . . . . . . . . . . . . . . . . . Slashing 292 | . . . . . 15 1 19 5 26 6 24 8 8 6 11 6 2 . . 17 23 1 . 4 9 1 4 6 5 12 11 16 8 25 13 Piercing . | . . . . . . . . . . . . . . . . . . . . . . . . . . . . . . . . . . . . Sneak Attacks 28 | . . . . . 5 . . 2 . . 8 1 3 . . . . 4 . 1 . . . . . . . 1 . 1 1 1 . . . Combat Hostiles 1 | . . . . . . . . . . . . . . . . . . . . 1 . . . . . . . . . . . . . . . Follow-up Attacks . | . . . . . . . . . . . . . . . . . . . . . . . . . . . . . . . . . . . . Damage Inflicted 7120 | 259 659 141 1447 1335 401 . . 101 . . 812 200 578 . . . . . . 124 . . . . . . . 168 . 89 155 180 . 144 327 Guns 3078 | 259 659 . 1345 815 . . . . . . . . . . . . . . . . . . . . . . . . . . . . . . . Cannons 169 | . . . . . . . . . . . . . . . . . . . . . . . . . . . . . . . . . . 41 128 Explosions 698 | . . 141 85 472 . . . . . . . . . . . . . . . . . . . . . . . . . . . . . . . Melee 2959 | . . . . 48 401 . . 101 . . 812 200 578 . . . . . . 124 . . . . . . . 168 . 89 155 180 . 103 . Ramming 216 | . . . 17 . . . . . . . . . . . . . . . . . . . . . . . . . . . . . . . 199 Kinetic 2397 | 259 659 . 695 615 . . . . . . . . . . . . . . . . . . . . . . . . . . . . . 41 128 Thermal 850 | . . . 650 200 . . . . . . . . . . . . . . . . . . . . . . . . . . . . . . . Explosive 698 | . . 141 85 472 . . . . . . . . . . . . . . . . . . . . . . . . . . . . . . . Electromagnetic . | . . . . . . . . . . . . . . . . . . . . . . . . . . . . . . . . . . . . Impact 48 | . . . . 48 . . . . . . . . . . . . . . . . . . . . . . . . . . . . . . . Slashing 2911 | . . . . . 401 . . 101 . . 812 200 578 . . . . . . 124 . . . . . . . 168 . 89 155 180 . 103 . Piercing . | . . . . . . . . . . . . . . . . . . . . . . . . . . . . . . . . . . . . Highest Corruption 27 | . 1 1 . 2 1 1 1 1 1 . . . . . . . . . . . . . . . . . . . . 2 2 2 . 4 27 Average Corruption 2 | . 1 1 . 2 1 1 1 1 1 . . . . . . . . . . . . . . . . . . . . 2 2 2 . 3 9 Corruption Purged . | . . . . . . . . . . . . . . . . . . . . . . . . . . . . . . . . . . . . Corruption Blocked . | . . . . . . . . . . . . . . . . . . . . . . . . . . . . . . . . . . . . Effects 48 | . 5 . . 5 3 . 1 1 . . . . . . . . . . . . . . . . . . . . . 2 4 2 . 16 9 Message Errors 12 | . 1 . . 1 . . . . . . . . . . . . . . . . . . . . . . . . . . 1 1 . 6 2 Matter Fused 12 | . . . . . 1 . 1 1 . . . . . . . . . . . . . . . . . . . . . 2 3 . . 2 2 Heat Flow Errors 5 | . 1 . . . . . . . . . . . . . . . . . . . . . . . . . . . . . . . . 3 1 Energy Discharges 4 | . 1 . . 1 . . . . . . . . . . . . . . . . . . . . . . . . . . . 1 . 1 . Parts Rejected 2 | . 1 . . . . . . . . . . . . . . . . . . . . . . . . . . . . . . . . 1 . Data Loss (minor) 4 | . . . . 1 . . . . . . . . . . . . . . . . . . . . . . . . . . . . . 3 . Data Loss (major) 2 | . . . . . 2 . . . . . . . . . . . . . . . . . . . . . . . . . . . . . . Misfires 1 | . . . . 1 . . . . . . . . . . . . . . . . . . . . . . . . . . . . . . . Misdirections 4 | . . . . . . . . . . . . . . . . . . . . . . . . . . . . . . . . . . . 4 Weapon Failures 2 | . 1 . . 1 . . . . . . . . . . . . . . . . . . . . . . . . . . . . . . . Overload Shots . | . . . . . . . . . . . . . . . . . . . . . . . . . . . . . . . . . . . . Overflow Damage 517 | . . 11 . 34 170 . . . . . 107 . 151 . . . . . . . . . . . . . . 43 . . . . . 1 . Projectiles . | . . . . . . . . . . . . . . . . . . . . . . . . . . . . . . . . . . . . Explosions 45 | . . 11 . 34 . . . . . . . . . . . . . . . . . . . . . . . . . . . . . . . Melee 472 | . . . . . 170 . . . . . 107 . 151 . . . . . . . . . . . . . . 43 . . . . . 1 . Knockbacks 2 | . . . . . . . . . . . . . . . . . . . . . . . . . . . . . . . . . . . 2 Impact . | . . . . . . . . . . . . . . . . . . . . . . . . . . . . . . . . . . . . Kinetic 2 | . . . . . . . . . . . . . . . . . . . . . . . . . . . . . . . . . . . 2 Secondary . | . . . . . . . . . . . . . . . . . . . . . . . . . . . . . . . . . . . . Self-Inflicted Damage 240 | . . 41 . . . . . . . . . . . . . . . . . . . . . . . . . . . . . . . . 199 Shots 1 | . . 1 . . . . . . . . . . . . . . . . . . . . . . . . . . . . . . . . . Rammed . | . . . . . . . . . . . . . . . . . . . . . . . . . . . . . . . . . . . . Targets Rammed 14 | . . . 14 . . . . . . . . . . . . . . . . . . . . . . . . . . . . . . . . Kicked 14 | . . . 14 . . . . . . . . . . . . . . . . . . . . . . . . . . . . . . . . Crushed . | . . . . . . . . . . . . . . . . . . . . . . . . . . . . . . . . . . . . Highest Temperature 309 | . 93 . 309 173 25 . 1 . 26 62 137 34 14 50 78 54 28 129 88 13 . . . . 123 242 . . . 40 141 . . 160 224 Average Temperature 34 | . 11 . 93 61 8 . 1 . 16 21 20 11 7 16 21 18 14 26 31 6 . . . . 46 168 . . . 18 114 . . 35 110 Received Heat Transfer 1248 | . 153 . 534 99 54 . 20 . 45 . 69 . . 6 . . . . . . . . . . 12 12 9 9 . . . . . 28 198 Effects 3 | . . . 3 . . . . . . . . . . . . . . . . . . . . . . . . . . . . . . . . Energy Bleed 1 | . . . 1 . . . . . . . . . . . . . . . . . . . . . . . . . . . . . . . . Interference 2 | . . . 2 . . . . . . . . . . . . . . . . . . . . . . . . . . . . . . . . Siege Activations . | . . . . . . . . . . . . . . . . . . . . . . . . . . . . . . . . . . . . Martial Activations . | . . . . . . . . . . . . . . . . . . . . . . . . . . . . . . . . . . . . Shielding Activations . | . . . . . . . . . . . . . . . . . . . . . . . . . . . . . . . . . . . . Robots Disrupted . | . . . . . . . . . . . . . . . . . . . . . . . . . . . . . . . . . . . . Combat Hostiles . | . . . . . . . . . . . . . . . . . . . . . . . . . . . . . . . . . . . . Robots Corrupted . | . . . . . . . . . . . . . . . . . . . . . . . . . . . . . . . . . . . . Combat Hostiles . | . . . . . . . . . . . . . . . . . . . . . . . . . . . . . . . . . . . . Parts Fried . | . . . . . . . . . . . . . . . . . . . . . . . . . . . . . . . . . . . . Impact Corruptions . | . . . . . . . . . . . . . . . . . . . . . . . . . . . . . . . . . . . . Robots Melted 1 | . . . 1 . . . . . . . . . . . . . . . . . . . . . . . . . . . . . . . . Combat Hostiles 1 | . . . 1 . . . . . . . . . . . . . . . . . . . . . . . . . . . . . . . . Parts Melted 7 | . . . 4 2 . . . . . . 1 . . . . . . . . . . . . . . . . . . . . . . . . Heat Transferred 2035 | . . . 1554 481 . . . . . . . . . . . . . . . . . . . . . . . . . . . . . . . Parts Sabotaged . | . . . . . . . . . . . . . . . . . . . . . . . . . . . . . . . . . . . . Parts Stolen . | . . . . . . . . . . . . . . . . . . . . . . . . . . . . . . . . . . . . Parts Stripped . | . . . . . . . . . . . . . . . . . . . . . . . . . . . . . . . . . . . . Power Chain Reactions . | . . . . . . . . . . . . . . . . . . . . . . . . . . . . . . . . . . . . Alert | -11 -10 -10 -9 -8 -7 -7 -7 -7 -6 -6 -6 -6 -6 -6 -5 -5 -5 -5 -4 -4 -4 -4 -4 -3 -3 -3 -3 -3 -3 -2 -2 -2 -1 -1 -1 ------- Run | Yrd Mat Min Mat Mat Fac Low Low Dat Pro Fac Ext Cet Arc Hub Fac Upp Upp War Pro Fac Upp Upp Zhi Pro Res Gar Res Arm Lab Res Qua Sec Acc Com Ac0 Maximum Alert Level 2 | . 1 . 1 1 2 . . . . 2 1 1 1 1 1 . . . . . . . . . 1 . . . . . . . . 2 . Low Security (%) 60 | 100 75 100 87 44 2 . . . . . 83 7 30 60 28 . . . . 100 . . . . 98 100 100 100 . 100 100 100 100 23 . Level 1 30 | . 24 . 12 55 25 . . . . . 16 92 69 40 71 . . . . . . . . . 1 . . . . . . . . 74 . Level 2 9 | . . . . . 71 . . . . 100 . . . . . . . . . . . . . . . . . . . . . . . 2 . Level 3 . | . . . . . . . . . . . . . . . . . . . . . . . . . . . . . . . . . . . . Level 4 . | . . . . . . . . . . . . . . . . . . . . . . . . . . . . . . . . . . . . Level 5 . | . . . . . . . . . . . . . . . . . . . . . . . . . . . . . . . . . . . . High Security . | . . . . . . . . . . . . . . . . . . . . . . . . . . . . . . . . . . . . Max Security . | . . . . . . . . . . . . . . . . . . . . . . . . . . . . . . . . . . . . Peak Influence 572 | 5 254 45 260 385 572 . . . . 450 321 294 249 382 312 . . . . 57 . . . . 202 191 185 96 . 165 172 97 103 408 . Initial 450 | . 3 45 15 107 175 . . . . 450 205 179 83 76 182 . . . . . . . . . . 156 107 96 . . 77 67 . 65 . Average 181 | 2 138 18 157 222 436 . . . . 424 101 246 200 185 242 . . . . 11 . . . . 55 168 111 13 . 81 137 19 29 270 . Influence Increases 7621 | 15 427 50 791 672 883 . 45 . . 509 627 179 206 366 404 . 30 15 . 260 165 . . . 272 35 128 72 . 268 173 192 129 584 124 Destroy 0b10 Robot/C 1740 | . 260 . 500 420 40 . . . . . 260 80 80 80 . . . . . 20 . . . . . . . . . . . . . . . Destroy 0b10 Robot/NC 120 | 15 15 . 15 5 20 . . . . . 10 5 15 . . . . . . . . . . . . . . . . 5 5 10 . . . Destroy Leader 340 | . 44 . 120 80 20 . . . . . 40 . . 20 . . . . . 10 . . . . . . . . . . 2 4 . . . Allied During Kill 327 | . . . 22 . 5 . . . . . 119 46 95 40 . . . . . . . . . . . . . . . . . . . . . Trap Triggered on 0b10 20 | . . . . . . . . . . . . . . . . . . . . . . . . . . . . 20 . . . . . . . Successful Hack 560 | . 33 . 20 33 123 . . . . 24 47 14 . 7 39 . . . . 50 . . . . 29 . . 20 . 5 43 46 15 12 . Select Force Hacks 210 | . 30 . . 30 . . . . . . . . . 150 . . . . . . . . . . . . . . . . . . . . . Disable Machine 345 | . . . 15 . 15 . . . . 15 30 30 15 30 . . . . . 15 . . . . . . . 30 . . 30 75 . . 45 Anti-Garrison Action 250 | . . . . . 200 . . . . . . . . . . . . . . . . . . . . . . . . . . . . 50 . Destroy Structure 529 | . . 35 9 29 25 . . . . 5 16 4 1 9 20 . . . . 30 . . . . 18 5 8 2 . 33 18 12 24 192 34 Advance Influence 450 | . . . . . . . . . . 450 . . . . . . . . . . . . . . . . . . . . . . . . . Partial Spotted 885 | . 15 15 30 15 60 . . . . 15 45 . . 15 15 . . . . 45 . . . . 90 30 45 . . 75 60 45 60 165 45 Lose Combat Pursuer 1845 | . 30 . 60 60 375 . 45 . . . 60 . . 15 330 . 30 15 . 90 165 . . . 135 . 75 . . 150 15 . 30 165 . Influence Decreases 7621 | 10 314 128 577 541 1002 119 89 103 . 90 725 292 195 213 530 152 49 90 . 260 105 42 18 . 64 52 134 257 . 130 191 312 26 552 259 Entered New Map 2230 | . 2 73 25 147 210 99 29 103 . . 214 142 125 143 190 92 19 75 . . . 12 18 . . 52 84 89 . . 61 53 . 38 135 Time Decay 3481 | 10 302 55 362 214 342 20 60 . . 90 169 150 50 20 170 60 30 15 . 191 105 30 . . 44 . 30 66 . 130 120 116 26 474 30 Lost Part 383 | . 10 . 130 20 10 . . . . . 19 . . 10 10 . . . . . . . . . 10 . 20 . . . . 20 . 30 94 Lost Ally 468 | . . . 60 10 140 . . . . . 138 . 20 40 10 . . . . 10 . . . . 10 . . . . . 10 10 . 10 . Purge Threat 1059 | . . . . 150 300 . . . . . 185 . . . 150 . . . . 59 . . . . . . . 102 . . . 113 . . . Squads Dispatched 53 | . 2 . 1 2 6 . . . . 3 1 . . 5 2 . . . . 3 . . . . 3 . 1 4 . 3 3 3 3 8 . Investigation 24 | . 2 . . 2 3 . . . . 1 1 . . 4 . . . . . 2 . . . . 1 . . 3 . . 2 . 2 1 . Extermination 8 | . . . . . 1 . . . . . . . . . 1 . . . . 1 . . . . . . . 1 . . 1 . . 3 . Reinforcement 16 | . . . 1 . 2 . . . . 2 . . . 1 1 . . . . . . . . . . . 1 . . 2 . 1 1 4 . Assault . | . . . . . . . . . . . . . . . . . . . . . . . . . . . . . . . . . . . . Garrison . | . . . . . . . . . . . . . . . . . . . . . . . . . . . . . . . . . . . . Intercept 5 | . . . . . . . . . . . . . . . . . . . . . . . . . 2 . . . . 1 . 2 . . . Searches Triggered . | . . . . . . . . . . . . . . . . . . . . . . . . . . . . . . . . . . . . Construction Impeded . | . . . . . . . . . . . . . . . . . . . . . . . . . . . . . . . . . . . . Haulers Reinforced 1 | . . . . . . . . . . . . . . . . . . . . . . . . . . . . . . 1 . . . . . Active Scanning Responses . | . . . . . . . . . . . . . . . . . . . . . . . . . . . . . . . . . . . . Cargo Convoy Interrupts . | . . . . . . . . . . . . . . . . . . . . . . . . . . . . . . . . . . . . Stealth | -11 -10 -10 -9 -8 -7 -7 -7 -7 -6 -6 -6 -6 -6 -6 -5 -5 -5 -5 -4 -4 -4 -4 -4 -3 -3 -3 -3 -3 -3 -2 -2 -2 -1 -1 -1 --------- Run | Yrd Mat Min Mat Mat Fac Low Low Dat Pro Fac Ext Cet Arc Hub Fac Upp Upp War Pro Fac Upp Upp Zhi Pro Res Gar Res Arm Lab Res Qua Sec Acc Com Ac0 Distress Signals 32 | . 1 . 5 3 1 . . . . 2 4 1 . . 3 . . 1 . . . . . . . . 1 . . 4 1 . 1 4 . Communications Jammed . | . . . . . . . . . . . . . . . . . . . . . . . . . . . . . . . . . . . . Distress Signals . | . . . . . . . . . . . . . . . . . . . . . . . . . . . . . . . . . . . . Times Spotted 419 | . 27 5 54 36 29 . 4 4 6 3 18 5 5 14 33 . 1 33 4 6 5 . . . 13 14 13 6 . 16 3 10 4 36 12 Peak Tracking Total 18 | . 7 18 6 6 10 . 4 4 3 4 5 5 2 10 15 . 3 7 4 6 9 . . . 5 15 11 6 . 11 1 6 7 10 11 Tactical Retreats 55 | . 1 1 2 2 8 . 1 . . . 3 . . 1 7 . 1 1 . 3 5 . . . 3 . 2 . . 4 1 . 2 6 1 Traps | -11 -10 -10 -9 -8 -7 -7 -7 -7 -6 -6 -6 -6 -6 -6 -5 -5 -5 -5 -4 -4 -4 -4 -4 -3 -3 -3 -3 -3 -3 -2 -2 -2 -1 -1 -1 ------- Run | Yrd Mat Min Mat Mat Fac Low Low Dat Pro Fac Ext Cet Arc Hub Fac Upp Upp War Pro Fac Upp Upp Zhi Pro Res Gar Res Arm Lab Res Qua Sec Acc Com Ac0 Traps Triggered 8 | . 1 . . 1 . . . . . . . . . . 1 . . . . 1 . . . . . . . . . . 2 . . 2 . Indirectly . | . . . . . . . . . . . . . . . . . . . . . . . . . . . . . . . . . . . . Trap Hack Attempts 4 | . . . . . . . . . . . 4 . . . . . . . . . . . . . . . . . . . . . . . . Triggered . | . . . . . . . . . . . . . . . . . . . . . . . . . . . . . . . . . . . . Disarmed 17 | . . . . . . . . . . . 4 . . . . . . . . . . . . . . . . 2 . . 5 6 . . . Reprogrammed 6 | . . . . . . . . . . . 2 . . . . . . . . . . . . . . . . 4 . . . . . . . Reused 2 | . . . . . . . . . . . . . . . . . . . . . . . . . . . . 2 . . . . . . . Traps Extracted . | . . . . . . . . . . . . . . . . . . . . . . . . . . . . . . . . . . . . Installed . | . . . . . . . . . . . . . . . . . . . . . . . . . . . . . . . . . . . . Triggered 2 | . . . . . . . . . . . . . . . . . . . . . . . . . . . . 2 . . . . . . . Machines | -11 -10 -10 -9 -8 -7 -7 -7 -7 -6 -6 -6 -6 -6 -6 -5 -5 -5 -5 -4 -4 -4 -4 -4 -3 -3 -3 -3 -3 -3 -2 -2 -2 -1 -1 -1 ---------- Run | Yrd Mat Min Mat Mat Fac Low Low Dat Pro Fac Ext Cet Arc Hub Fac Upp Upp War Pro Fac Upp Upp Zhi Pro Res Gar Res Arm Lab Res Qua Sec Acc Com Ac0 Machines Disabled 35 | . . . 1 . 1 1 1 . . 1 4 3 1 2 . 1 . . . 1 . . . . . . . 2 1 . 2 5 . 2 6 Max in Single Turn 2 | . . . 1 . 1 1 1 . . 1 1 1 1 . . 1 . . . 1 . . . . . . . 1 1 . 1 1 . 2 1 Garrison Access 13 | . . . . . 3 . . . . 1 . . . 1 2 . . . . 2 . . . . 1 . . . . 1 1 1 . . . Phase Generator 1 | . . . . . . . . . . . . . . . . . . . . . . . . . . . . . . . . . . 1 . Network Hub 3 | . . . . . . . . . . . . . . 3 . . . . . . . . . . . . . . . . . . . . . Energy Cycler 1 | . . . . . . . . . . . . . . . . . . . . . . . . . . . . . . . . . 1 . . Machines Repaired . | . . . . . . . . . . . . . . . . . . . . . . . . . . . . . . . . . . . . Machines Dismantled 1 | . . . . . . . . . . . . 1 . . . . . . . . . . . . . . . . . . . . . . . Machines Sabotaged 3 | . . . . . . . . . . . . . . 3 . . . . . . . . . . . . . . . . . . . . . Overloaded Fab Kills . | . . . . . . . . . . . . . . . . . . . . . . . . . . . . . . . . . . . . Hacking | -11 -10 -10 -9 -8 -7 -7 -7 -7 -6 -6 -6 -6 -6 -6 -5 -5 -5 -5 -4 -4 -4 -4 -4 -3 -3 -3 -3 -3 -3 -2 -2 -2 -1 -1 -1 --------- Run | Yrd Mat Min Mat Mat Fac Low Low Dat Pro Fac Ext Cet Arc Hub Fac Upp Upp War Pro Fac Upp Upp Zhi Pro Res Gar Res Arm Lab Res Qua Sec Acc Com Ac0 Machines Accessed 164 | . 10 . 7 12 22 . . 4 . 5 18 4 . 5 7 2 . 3 . 10 1 1 4 . 5 . 2 6 2 3 9 8 3 10 1 Terminals 108 | . 8 . 5 10 15 . . . . 2 17 4 . 4 4 . . . . 6 . . . . 2 . 2 3 . 2 7 7 1 9 . Fabricators 12 | . . . . . 4 . . . . 2 . . . . . . . . . 1 . . . . 1 . . 2 . . . . 2 . . Repair Stations 7 | . 1 . . . . . . . . . 1 . . . 1 . . . . 1 . . . . . . . 1 . 1 . . . 1 . Recycling Units 3 | . 1 . 1 1 . . . . . . . . . . . . . . . . . . . . . . . . . . . . . . . Scanalyzers 3 | . . . 1 1 . . . . . . . . . . . . . . . . . . . . . . . . . . 1 . . . . Garrison Access 13 | . . . . . 3 . . . . 1 . . . 1 2 . . . . 2 . . . . 2 . . . . . 1 1 . . . Total Hacks 671 | . 39 . 25 36 82 . . 30 . 15 69 19 . 13 32 2 . 4 . 57 1 1 13 . 19 . 4 42 22 10 50 32 7 42 5 Successful 431 | . 20 . 18 23 48 . . 30 . 10 29 5 . 7 20 2 . 4 . 38 1 1 13 . 13 . 1 32 22 6 41 19 5 18 5 Failed 240 | . 19 . 7 13 34 . . . . 5 40 14 . 6 12 . . . . 19 . . . . 6 . 3 10 . 4 9 13 2 24 . Catastrophic 27 | . . . . 1 4 . . . . 2 2 4 . . 2 . . . . . . . . . 1 . 1 1 . 1 . 2 . 6 . Database Lockouts . | . . . . . . . . . . . . . . . . . . . . . . . . . . . . . . . . . . . . Manual 334 | . 40 . 21 29 46 . . . . 5 39 1 . 9 16 . . 1 . 33 . . . . 10 . 1 20 . . 27 9 1 26 . Terminals 491 | . 37 . 18 31 64 . . . . 6 66 19 . 9 21 . . . . 47 . . . . 13 . 4 33 . 8 44 29 3 39 . Fabricators 35 | . . . . . 10 . . . . 7 . . . . . . . . . 3 . . . . 3 . . 8 . . . . 4 . . Repair Stations 17 | . 1 . . . . . . . . . 3 . . . 6 . . . . 1 . . . . . . . 1 . 2 . . . 3 . Recycling Units 7 | . 1 . 5 1 . . . . . . . . . . . . . . . . . . . . . . . . . . . . . . . Scanalyzers 10 | . . . 2 4 . . . . . . . . . . . . . . . . . . . . . . . . . . 4 . . . . Garrison Access 33 | . . . . . 8 . . . . 2 . . . 4 5 . . . . 6 . . . . 3 . . . . . 2 3 . . . Terminal Hacks 212 | . 5 . 1 5 16 . . 30 . 2 18 5 . 1 5 2 . 4 . 13 1 1 13 . 3 . 1 15 22 4 18 12 2 8 5 Record 47 | . . . . . . . . 11 . . . 5 . . . 1 . 3 . . . . 5 . . . . . 22 . . . . . . Part Schematic 24 | . 1 . . 1 3 . . 10 . . 1 . . . . . . . . 1 . . 4 . . . . 1 . . 1 1 . . . Robot Schematic 6 | . . . . . . . . 6 . . . . . . . . . . . . . . . . . . . . . . . . . . . Robot Analysis 7 | . 2 . 1 2 1 . . . . . 1 . . . . . . . . . . . . . . . . . . . . . . . . Prototype ID Bank 16 | . . . . . . . . 3 . . . . . . 1 . . . . 1 . . 4 . 1 . . 1 . 1 3 . . 1 . Open Door 23 | . . . . . . . . . . 1 12 . . . . 1 . 1 . . 1 1 . . . . . . . . . 5 . 1 . Level Access Points 3 | . . . . . . . . . . . . . . 1 . . . . . . . . . . . . . 1 . . 1 . . . . Branch Access Points 7 | . . . . . 1 . . . . . . . . . . . . . . 1 . . . . 1 . 1 1 . 1 1 . . . . Emergency Access Points 3 | . . . . . . . . . . . . . . . . . . . . 1 . . . . . . . 1 . . 1 . . . . Machine Index 1 | . . . . . 1 . . . . . . . . . . . . . . . . . . . . . . . . . . . . . . Terminal Index 4 | . 1 . . 1 1 . . . . . . . . . . . . . . . . . . . . . . . . . . . . 1 . Alert Level 7 | . . . . . 1 . . . . . . . . . . . . . . 1 . . . . . . . 1 . . 1 1 1 1 . Unreport Threat 11 | . . . . 1 2 . . . . . 2 . . . 1 . . . . 2 . . . . . . . 2 . . . 1 . . . Locate Traps 5 | . 1 . . . . . . . . . . . . . . . . . . . . . . . . . . 2 . . 1 1 . . . Disarm Traps 6 | . . . . . . . . . . . 1 . . . . . . . . . . . . . . . . 1 . . 3 1 . . . Reprogram Traps 2 | . . . . . . . . . . . . . . . . . . . . . . . . . . . . 2 . . . . . . . Dispatch Records 1 | . . . . . . . . . . . . . . . . . . . . 1 . . . . . . . . . . . . . . . Recall Investigation 1 | . . . . . . . . . . . . . . . . . . . . . . . . . . . . . . . 1 . . . . Hauler Manifests 1 | . . . . . . . . . . . 1 . . . . . . . . . . . . . . . . . . . . . . . . Registered Components 4 | . . . . . . . . . . . . . . . 1 . . . . 1 . . . . . . . . . 1 1 . . . . Registered Prototypes 5 | . . . . . . . . . . . . . . . 1 . . . . . . . . . . . . . . 1 1 1 . 1 . Zone Layout 21 | . . . . . 6 . . . . 1 . . . . 1 . . . . 4 . . . . 1 . . 2 . . 3 1 1 1 . Disengage Seal 2 | . . . . . . . . . . . . . . . . . . . . . . . . . . . . . . . . . . 2 . Gate Test 138-A 2 | . . . . . . . . . . . . . . . . . . . . . . . . . . . . . . . . . . . 2 Gate Test 138-B 1 | . . . . . . . . . . . . . . . . . . . . . . . . . . . . . . . . . . . 1 Gate Test 138-C 2 | . . . . . . . . . . . . . . . . . . . . . . . . . . . . . . . . . . . 2 Fabricator Hacks 20 | . . . . . 4 . . . . 5 . . . . . . . . . 3 . . . . 2 . . 4 . . . . 2 . . Load Schematic 12 | . . . . . 2 . . . . 3 . . . . . . . . . 2 . . . . 1 . . 3 . . . . 1 . . Build 8 | . . . . . 2 . . . . 2 . . . . . . . . . 1 . . . . 1 . . 1 . . . . 1 . . Repair Station Hacks 10 | . . . . . . . . . . . . . . . 6 . . . . . . . . . . . . . . 2 . . . 2 . Scan Component 5 | . . . . . . . . . . . . . . . 3 . . . . . . . . . . . . . . 1 . . . 1 . Repair 5 | . . . . . . . . . . . . . . . 3 . . . . . . . . . . . . . . 1 . . . 1 . Recycling Unit Hacks 1 | . . . 1 . . . . . . . . . . . . . . . . . . . . . . . . . . . . . . . . Retrieve Components 1 | . . . 1 . . . . . . . . . . . . . . . . . . . . . . . . . . . . . . . . Scanalyzer 10 | . . . 2 4 . . . . . . . . . . . . . . . . . . . . . . . . . . 4 . . . . Insert Component 7 | . . . 1 2 . . . . . . . . . . . . . . . . . . . . . . . . . . 4 . . . . Analyze 3 | . . . 1 2 . . . . . . . . . . . . . . . . . . . . . . . . . . . . . . . Garrison Access Hacks 12 | . . . . . 2 . . . . 1 . . . 1 2 . . . . 2 . . . . 2 . . . . . 1 1 . . . Unlock Access 1 | . . . . . . . . . . . . . . . . . . . . . . . . . 1 . . . . . . . . . . Seal Access 11 | . . . . . 2 . . . . 1 . . . 1 2 . . . . 2 . . . . 1 . . . . . 1 1 . . . Unauthorized Hacks 166 | . 15 . 14 14 26 . . . . 2 11 . . 5 7 . . . . 20 . . . . 6 . . 13 . . 18 6 1 8 . Terminals 149 | . 13 . 11 13 23 . . . . 1 10 . . 5 7 . . . . 19 . . . . 5 . . 10 . . 18 6 . 8 . Track 25 | . . . . 1 6 . . . . . 3 . . . 2 . . . . 4 . . . . . . . 2 . . 5 1 . 1 . Assimilate 19 | . 2 . . 1 4 . . . . . 1 . . . 3 . . . . 2 . . . . 2 . . . . . 2 1 . 1 . Botnet 55 | . 4 . 5 5 7 . . . . 1 5 . . 1 2 . . . . 6 . . . . 2 . . 3 . . 6 2 . 6 . Operators 9 | . 1 . 1 1 1 . . . . . 1 . . . . . . . . 2 . . . . . . . 2 . . . . . . . Skim 37 | . 6 . 5 5 5 . . . . . . . . . . . . . . 5 . . . . 1 . . 3 . . 5 2 . . . Sabotage 4 | . . . . . . . . . . . . . . 4 . . . . . . . . . . . . . . . . . . . . . Fabricators 7 | . . . . . 2 . . . . 1 . . . . . . . . . . . . . . 1 . . 2 . . . . 1 . . Recompile 7 | . . . . . 2 . . . . 1 . . . . . . . . . . . . . . 1 . . 2 . . . . 1 . . Repair Stations 4 | . 1 . . . . . . . . . 1 . . . . . . . . 1 . . . . . . . 1 . . . . . . . Mechanics 1 | . 1 . . . . . . . . . . . . . . . . . . . . . . . . . . . . . . . . . . Patch 3 | . . . . . . . . . . . 1 . . . . . . . . 1 . . . . . . . 1 . . . . . . . Recycling Units 5 | . 1 . 3 1 . . . . . . . . . . . . . . . . . . . . . . . . . . . . . . . Reject 1 | . . . 1 . . . . . . . . . . . . . . . . . . . . . . . . . . . . . . . . Recyclers 1 | . . . 1 . . . . . . . . . . . . . . . . . . . . . . . . . . . . . . . . Mask 1 | . . . 1 . . . . . . . . . . . . . . . . . . . . . . . . . . . . . . . . Tunnel 2 | . 1 . . 1 . . . . . . . . . . . . . . . . . . . . . . . . . . . . . . . Scanalyzers . | . . . . . . . . . . . . . . . . . . . . . . . . . . . . . . . . . . . . Garrison Access 1 | . . . . . 1 . . . . . . . . . . . . . . . . . . . . . . . . . . . . . . Jam 1 | . . . . . 1 . . . . . . . . . . . . . . . . . . . . . . . . . . . . . . Data Cores Recovered 1 | . . . . . . . . . . . 1 . . . . . . . . . . . . . . . . . . . . . . . . Used . | . . . . . . . . . . . . . . . . . . . . . . . . . . . . . . . . . . . . Hacking Detections 90 | . 8 . 6 11 19 . . . . 3 7 2 . 2 3 . . . . 4 . . . . 3 . 2 2 . 2 6 2 2 6 . Full Trace Events 5 | . 2 . 1 1 . . . . . . . . . . . . . . . . . . . . . . . . . . . . 1 . . Feedback Events . | . . . . . . . . . . . . . . . . . . . . . . . . . . . . . . . . . . . . Feedback Blocked . | . . . . . . . . . . . . . . . . . . . . . . . . . . . . . . . . . . . . Robot Schematics Acquired 6 | . . . . . . . . 6 . . . . . . . . . . . . . . . . . . . . . . . . . . . Robots Built 6 | . . . . . 6 . . . . . . . . . . . . . . . . . . . . . . . . . . . . . . Authchips . | . . . . . . . . . . . . . . . . . . . . . . . . . . . . . . . . . . . . Time 165 | . . . . . 165 . . . . . . . . . . . . . . . . . . . . . . . . . . . . . . Total Robot Build Rating 15 | . . . . . 15 . . . . . . . . . . . . . . . . . . . . . . . . . . . . . . Part Schematics Acquired 27 | . 1 . 1 3 3 . . 10 . . 1 . . . . . . . . 1 . . 4 . . . . 1 . . 1 1 . . . Parts Built 10 | . . . . . . . . . . 3 . . . . . . . . . 2 . . . . 2 . . 1 . . . . 2 . . Authchips 4 | . . . . . . . . . . 2 . . . . . . . . . 1 . . . . . . . 1 . . . . . . . Time 340 | . . . . . . . . . . 89 . . . . . . . . . 95 . . . . 69 . . 56 . . . . 31 . . Total Part Build Rating 56 | . . . . . . . . . . 12 . . . . . . . . . 10 . . . . 18 . . 6 . . . . 10 . . Parts Repaired 5 | . . . . . . . . . . . . . . . 3 . . . . . . . . . . . . . . 1 . . . 1 . Time 205 | . . . . . . . . . . . . . . . 126 . . . . . . . . . . . . . . 50 . . . 29 . Parts Recycled . | . . . . . . . . . . . . . . . . . . . . . . . . . . . . . . . . . . . . Recycled Matter . | . . . . . . . . . . . . . . . . . . . . . . . . . . . . . . . . . . . . Retrieved Matter . | . . . . . . . . . . . . . . . . . . . . . . . . . . . . . . . . . . . . Retrieved Components 9 | . . . 9 . . . . . . . . . . . . . . . . . . . . . . . . . . . . . . . . Parts Scanalyzed 3 | . . . 1 2 . . . . . . . . . . . . . . . . . . . . . . . . . . . . . . . Part Schematics Acquired 3 | . . . 1 2 . . . . . . . . . . . . . . . . . . . . . . . . . . . . . . . Parts Damaged . | . . . . . . . . . . . . . . . . . . . . . . . . . . . . . . . . . . . . Bothacking | -11 -10 -10 -9 -8 -7 -7 -7 -7 -6 -6 -6 -6 -6 -6 -5 -5 -5 -5 -4 -4 -4 -4 -4 -3 -3 -3 -3 -3 -3 -2 -2 -2 -1 -1 -1 ------------ Run | Yrd Mat Min Mat Mat Fac Low Low Dat Pro Fac Ext Cet Arc Hub Fac Upp Upp War Pro Fac Upp Upp Zhi Pro Res Gar Res Arm Lab Res Qua Sec Acc Com Ac0 Used RIF Installer . | . . . . . . . . . . . . . . . . . . . . . . . . . . . . . . . . . . . . Robots Hacked 6 | . . . . . . . . 1 . . . 1 . . . . . 3 . . . . . . . . . . . . . . . 1 . Non-combat . | . . . . . . . . . . . . . . . . . . . . . . . . . . . . . . . . . . . . Combat 5 | . . . . . . . . 1 . . . 1 . . . . . 3 . . . . . . . . . . . . . . . . . Robot Hacks Applied 5 | . . . . . . . . 1 . . . 1 . . . . . 3 . . . . . . . . . . . . . . . . . parse_system 5 | . . . . . . . . 1 . . . 1 . . . . . 3 . . . . . . . . . . . . . . . . . Manual 1 | . . . . . . . . . . . . . . . . . . . . . . . . . . . . . . . . . . 1 . Relay Couplers Released 3 | . . . . . . . . . . . . . . . . . . . . . . . . . . . . . . 3 . . . . . Machine Destruction 3 | . . . . . . . . . . . . . . . . . . . . . . . . . . . . . . 3 . . . . . Fabnet Peak Effective % . | . . . . . . . . . . . . . . . . . . . . . . . . . . . . . . . . . . . . Robots Rewired 4 | . . . . . . . . . . . 3 . . . . . . . . . . . . . . . . . . . . . . 1 . Allies Hacked 1 | . . . . . 1 . . . . . . . . . . . . . . . . . . . . . . . . . . . . . . Hacks Repelled . | . . . . . . . . . . . . . . . . . . . . . . . . . . . . . . . . . . . . Allies | -11 -10 -10 -9 -8 -7 -7 -7 -7 -6 -6 -6 -6 -6 -6 -5 -5 -5 -5 -4 -4 -4 -4 -4 -3 -3 -3 -3 -3 -3 -2 -2 -2 -1 -1 -1 -------- Run | Yrd Mat Min Mat Mat Fac Low Low Dat Pro Fac Ext Cet Arc Hub Fac Upp Upp War Pro Fac Upp Upp Zhi Pro Res Gar Res Arm Lab Res Qua Sec Acc Com Ac0 Total Allies 48 | . 1 3 . 1 10 . . . . . 19 5 . . 2 . . . . 1 . . . . 2 . . . . . 1 1 . 2 . Largest Group 11 | . 1 3 3 1 4 . . . . . 8 11 11 9 1 . . . . 1 . . . . 1 . . . . . 1 1 . 1 . Highest-Rated Group 766 | . 10 40 40 10 72 . . . . . 353 766 766 586 26 . . . . 26 . . . . 26 . . . . . 26 45 . 219 . Highest-Rated Ally 219 | . 10 16 16 10 26 . . . . . 159 159 159 96 26 . . . . 26 . . . . 26 . . . . . 26 45 . 219 . Total Orders 4 | . . . . . . . . . . . . . 2 . . . . . . . . . . . . . . . . . . . . . 2 ROAM 1 | . . . . . . . . . . . . . 1 . . . . . . . . . . . . . . . . . . . . . . FOLLOW 1 | . . . . . . . . . . . . . 1 . . . . . . . . . . . . . . . . . . . . . . EXPLORE 2 | . . . . . . . . . . . . . . . . . . . . . . . . . . . . . . . . . . . 2 Ally Attacks 196 | . . . 36 . 14 . . . . . 60 29 38 17 . . . . . . . . . . . . . . . . . . . 2 . Total Damage 4578 | . . . 408 . 317 . . . . . 1232 631 1306 395 . . . . . . . . . . . . . . . . . . . 289 . Kills 33 | . . . 5 . 3 . . . . . 11 5 4 5 . . . . . . . . . . . . . . . . . . . . . Allies Corrupted . | . . . . . . . . . . . . . . . . . . . . . . . . . . . . . . . . . . . . Allies Melted 2 | . . . . . 1 . . . . . 1 . . . . . . . . . . . . . . . . . . . . . . . . Intel | -11 -10 -10 -9 -8 -7 -7 -7 -7 -6 -6 -6 -6 -6 -6 -5 -5 -5 -5 -4 -4 -4 -4 -4 -3 -3 -3 -3 -3 -3 -2 -2 -2 -1 -1 -1 ------- Run | Yrd Mat Min Mat Mat Fac Low Low Dat Pro Fac Ext Cet Arc Hub Fac Upp Upp War Pro Fac Upp Upp Zhi Pro Res Gar Res Arm Lab Res Qua Sec Acc Com Ac0 Active Infowar (turns) 7349 | 5 715 169 69 . 670 47 138 55 189 181 294 . . . 211 135 76 265 48 768 258 72 58 71 199 22 73 181 277 262 251 246 87 1200 57 Sensors 5643 | . . . . . 670 47 138 55 189 181 292 . . . . . . . . 768 258 72 58 71 199 22 73 181 277 262 251 246 87 1189 57 Structural 4516 | . . . . . . . . . . . 2 . . . 211 135 76 265 48 766 256 72 55 71 199 22 73 178 158 262 251 239 57 1075 45 Seismic 958 | 5 715 169 69 . . . . . . . . . . . . . . . . . . . . . . . . . . . . . . . . Robot Analysis Total 157 | . 2 . 1 2 1 . . 151 . . . . . . . . . . . . . . . . . . . . . . . . . . . Derelict Logs Recovered 5 | . . 1 . . . . . . . . . . . . . 1 1 . 1 . 1 . . . . . . . . . . . . . . Drone Launches 2 | . . . . . . . . . . . . . . . . . . . . . . . . . . . . . . . . . . . 2 Drone Recoveries . | . . . . . . . . . . . . . . . . . . . . . . . . . . . . . . . . . . . . Exploration | -11 -10 -10 -9 -8 -7 -7 -7 -7 -6 -6 -6 -6 -6 -6 -5 -5 -5 -5 -4 -4 -4 -4 -4 -3 -3 -3 -3 -3 -3 -2 -2 -2 -1 -1 -1 ------------- Run | Yrd Mat Min Mat Mat Fac Low Low Dat Pro Fac Ext Cet Arc Hub Fac Upp Upp War Pro Fac Upp Upp Zhi Pro Res Gar Res Arm Lab Res Qua Sec Acc Com Ac0 Turns Passed 9967 | 72 715 169 833 457 764 47 138 55 189 181 479 307 115 55 344 135 76 596 48 768 258 72 58 71 199 22 73 181 279 262 251 246 87 1200 165 Spaces Moved 16057 | 48 555 223 1043 882 2012 149 290 109 376 233 626 234 77 145 759 425 252 854 166 595 593 241 144 268 362 103 241 290 248 689 553 651 226 914 481 Core 223 | 48 127 . 24 . . . . . . . . . . . . . . 5 . . . . . . . . . . . . . . . . 19 Treads 10 | . . . 10 . . . . . . . . . . . . . . . . . . . . . . . . . . . . . . . . Legs 3 | . . . 3 . . . . . . . . . . . . . . . . . . . . . . . . . . . . . . . . Wheels . | . . . . . . . . . . . . . . . . . . . . . . . . . . . . . . . . . . . . Hover 194 | . . . 194 . . . . . . . . . . . . . . . . . . . . . . . . . . . . . . . . Flight 15627 | . 428 223 812 882 2012 149 290 109 376 233 626 234 77 145 759 425 252 849 166 595 593 241 144 268 362 103 241 290 248 689 553 651 226 914 462 Fastest Speed 5 | 50 37 37 34 26 26 27 27 27 29 16 15 23 23 23 22 22 22 19 22 21 28 28 17 21 6 7 20 25 25 11 5 10 10 6 5 Average Speed 24 | 50 40 37 42 28 26 27 27 27 29 22 22 23 23 23 22 22 22 25 22 26 28 28 25 21 18 16 22 25 25 16 10 10 10 11 18 Slowest Speed 600 | 50 100 117 180 34 27 27 27 29 29 29 23 23 23 86 22 22 22 600 22 28 28 28 28 21 20 20 74 25 25 25 11 67 15 72 100 Overloaded Moves 193 | . . . . . . . . . . 6 18 . . . . . . . . . . . . . 13 29 . . . . 12 . . 42 73 Propulsion Burnouts . | . . . . . . . . . . . . . . . . . . . . . . . . . . . . . . . . . . . . Robots Hopped 72 | . 5 . 17 10 7 . . . 2 1 3 . . 1 6 . . 2 3 . . 2 . . . . 1 . . 4 . . 2 4 2 Potential Cave-ins 14 | . . . . . . . . . . . . . . . . . . 3 . . . . . . . . . . . 2 . . . . 9 Cave-ins Triggered . | . . . . . . . . . . . . . . . . . . . . . . . . . . . . . . . . . . . . Teleports 4 | . . . . . . . . . . . . . . . . . . . . . . . . . . . . 1 . . . 1 . 1 1 Exploration Rate (%) 47 | 4 85 35 65 84 59 34 51 77 59 11 74 71 74 23 35 61 55 92 39 19 74 39 62 50 13 23 12 22 93 25 61 49 10 33 36 Regions Visited 35 Branch Regions 23 Pre-discovered Areas 35 | . 1 . . 1 2 . . 26 . . . . . . . 1 . . . . . . 3 . . . . . . . 1 . . . . Known Exits Taken 29 | . . 1 . 1 1 1 . . 1 1 1 1 1 1 1 1 1 1 1 1 1 1 1 1 1 . 1 1 1 1 1 1 1 1 . Unknown Exits Taken 5 | 1 1 . 1 . . . 1 1 . . . . . . . . . . . . . . . . . . . . . . . . . . . Scrap Searched 13 | . . 1 . . . 2 . . 2 . . . . . . 2 1 . 1 . 2 2 . . . . . . . . . . . . . Spaces Dug 223 | . . . . 5 20 . 18 . 26 5 9 . . 6 10 5 2 . . 15 23 1 . 4 9 . 4 1 . 11 6 4 8 22 9 Terrain Destroyed 373 | . . 45 9 25 20 . 18 . 26 5 9 . . 6 10 5 2 . . 15 23 1 . 4 9 . 4 1 . 11 6 4 8 95 12 Melee 221 | . . . . 5 20 . 18 . 26 5 9 . . 6 10 5 2 . . 15 23 1 . 4 9 . 4 1 . 11 6 4 8 20 9 Projectile 3 | . . . . . . . . . . . . . . . . . . . . . . . . . . . . . . . . . . 3 . AOE 146 | . . 45 9 20 . . . . . . . . . . . . . . . . . . . . . . . . . . . . . 72 . Terrain Rammed 5 | . . . . . . . . . . . . . . . . . . . . . . . . . . . . . . . . . . . 5 Walls Destroyed 3 | . . . . . . . . . . . . . . . . . . . . . . . . . . . . . . . . . . . 3 Machines Disabled 1 | . . . . . . . . . . . . . . . . . . . . . . . . . . . . . . . . . . . 1 Actions | -11 -10 -10 -9 -8 -7 -7 -7 -7 -6 -6 -6 -6 -6 -6 -5 -5 -5 -5 -4 -4 -4 -4 -4 -3 -3 -3 -3 -3 -3 -2 -2 -2 -1 -1 -1 --------- Run | Yrd Mat Min Mat Mat Fac Low Low Dat Pro Fac Ext Cet Arc Hub Fac Upp Upp War Pro Fac Upp Upp Zhi Pro Res Gar Res Arm Lab Res Qua Sec Acc Com Ac0 Total 21092 | 72 956 303 1270 1006 2192 153 310 123 401 347 907 456 156 153 906 455 268 1227 173 1173 639 240 165 273 477 104 251 387 455 810 729 800 271 1960 524 Wait 4080 | . 329 71 64 48 135 4 2 5 2 98 235 189 66 2 135 21 15 349 10 539 18 1 13 2 100 1 4 79 182 93 154 108 32 964 10 Move 15883 | 47 544 222 1008 862 1997 148 289 108 371 230 619 233 76 142 746 424 251 850 160 594 592 236 143 267 362 102 239 289 247 680 552 650 221 906 476 Hop 67 | . 5 . 17 9 7 . . . 2 1 3 . . 1 6 . . 1 2 . . 2 . . . . . . . 4 . . 2 3 2 Pick Up 70 | . 6 1 7 12 5 . . . . 3 . 3 . . 2 2 . 1 1 4 1 . 2 . 2 . . 5 3 . 1 4 1 3 1 Fast Attach 106 | 4 7 . 17 7 3 . . 1 . 2 4 2 2 . 3 1 . 6 . 2 2 . 2 . 1 . 1 . 8 6 . 8 3 8 6 Attach 60 | . 1 . 6 6 2 . . 1 . 3 3 5 . . 3 . . 2 . 4 . . . . 2 . . 2 2 1 . 2 2 10 3 Detach 21 | . . . 3 2 . . . 1 . . 2 2 . . . . . 2 . 1 . . . . . . . . 1 . . . . 7 . Swap 65 | . 4 2 11 7 7 . . . . 2 3 . 2 1 . . . 3 . 5 . . 1 . . . 1 2 . 7 1 3 1 2 . Drop 129 | . 6 2 17 13 9 . . 1 . 2 2 5 2 1 . 1 . 9 . 7 3 . 4 . 1 . 2 4 7 7 2 9 1 10 2 Fire 233 | 21 54 5 106 34 . . . . . . . . . . . . . . . . . . . . . . . . . . . . . 7 6 Melee 324 | . . . . 6 27 1 19 6 26 6 32 9 8 6 11 6 2 4 . 17 23 1 . 4 9 1 4 6 5 12 11 16 8 25 13 Ram 5 | . . . . . . . . . . . . . . . . . . . . . . . . . . . . . . . . . . . 5 Kick 14 | . . . 14 . . . . . . . . . . . . . . . . . . . . . . . . . . . . . . . . Crush . | . . . . . . . . . . . . . . . . . . . . . . . . . . . . . . . . . . . . Escape Stasis 23 | . . . . . . . . . . . . . . . . . . . . . . . . . . . . . . . 8 . . 15 . Rewire . | . . . . . . . . . . . . . . . . . . . . . . . . . . . . . . . . . . . . Trap 4 | . . . . . . . . . . . 4 . . . . . . . . . . . . . . . . . . . . . . . . Miscellaneous 8 | . . . . . . . . . . . . 8 . . . . . . . . . . . . . . . . . . . . . . . Route ------- -11/Scrapyard -10/Materials (discovered 5 exits: *Mat x3 / [*Min] / Sub) -10/Mines (discovered 2 exits: *Mat x2) -9/Materials (discovered 2 exits: *Mat / Min) -8/Materials (discovered 3 exits: *Fac x3) -7/Factory (discovered 8 exits: *Fac x4 / Sto x2 / *Low x2) -7/Lower Caves -7/Lower Caves (discovered 2 exits: *Fac / *Dat) -7/Data Miner -6/Proximity Caves -6/Factory -6/Extension (discovered 2 exits: *Fac / *Cet) -6/Cetus -6/Archives (discovered 3 exits: *Fac / *Hub x2) -6/Hub_04(d) (discovered 4 exits: *Fac x4) -5/Factory -5/Upper Caves -5/Upper Caves (discovered 2 exits: *Fac / *War) -5/Warlord -4/Proximity Caves -4/Factory (discovered 4 exits: *Res x2 / *Upp x2) -4/Upper Caves -4/Upper Caves -4/Zhirov -3/Proximity Caves -3/Research (discovered 5 exits: Res / Arm / Tes x2 / Gar) -3/Garrison -3/Research (discovered 3 exits: *Arm / Tes x2) -3/Armory (discovered 3 exits: Res x2 / *Lab) -3/Lab -2/Research (discovered 4 exits: *Acc x2 / *Qua x2) -2/Quarantine (discovered 3 exits: *Acc / *Sec / *Frg) -2/Section 7 -1/Access -1/Command (discovered 2 exits: [Sur] / *Ac0) -1/Access_0 To Epsilon Eridani History --------- Turn | Location | Event 6 | -11/Scrapyard | Discovered new exit (range 15) 73 | -11/Scrapyard | Entered Materials 288 | -10/Materials | Discovered new exit (range 16) 453 | -10/Materials | Discovered new exit (range 3) 522 | -10/Materials | Learned 4 Recycling zone layouts 524 | -10/Materials | Build established: Scavenger-Mutant 577 | -10/Materials | Learned Storage garrison access intel 621 | -10/Materials | Learned Storage security intel 654 | -10/Materials | Learned 2 Mines zone layouts 679 | -10/Materials | Loaded intel: 1 repair station location 714 | -10/Materials | Identified exit to Subcaves 758 | -10/Materials | Identified exit to Materials 758 | -10/Materials | Learned location of 1 exit from Materials 788 | -10/Materials | Entered Mines 795 | -10/Mines | Received a Rocket Launcher from a helpful Derelict 801 | -10/Mines | Met a Derelict bent on vengeance 804 | -10/Mines | Learned Materials security intel 807 | -10/Mines | Assisted by bots powering up and referring to "LRC-V3" 825 | -10/Mines | Assembled infested the area 830 | -10/Mines | Assisted by a Guerilla fighting off Assembled 946 | -10/Mines | Discovered exit to Materials (range 10) 957 | -10/Mines | Entered Materials 957 | -9/Materials | Accompanied by 3 allies 957 | -9/Materials | Evolved 2 slots: Propulsion x1, Utility x1 958 | -9/Materials | Identified exit to Mines 1087 | -9/Materials | Lost 3 allies 1363 | -9/Materials | Core integrity fell below 50% 1399 | -9/Materials | Lost 9 parts (1p5n3w) 1786 | -9/Materials | Discovered new exit (range 11) 1790 | -9/Materials | Entered another Materials area 1790 | -8/Materials | Evolved 2 slots: Propulsion x2 2004 | -8/Materials | Learned Storage non-interactive machine intel 2048 | -8/Materials | Learned 2 Lower Caves zone layouts 2049 | -8/Materials | Discovered new exit (range 16) 2084 | -8/Materials | Learned location of 1 exit from Lower Caves 2108 | -8/Materials | Identified exit to Factory 2123 | -8/Materials | Learned Factory emergency access door positions 2177 | -8/Materials | Learned 4 Recycling zone layouts 2247 | -8/Materials | Entered Factory 2247 | -7/Factory | Evolved 2 slots: Utility x2 2252 | -7/Factory | Destroyed 8 combat bots 2397 | -7/Factory | Build established: Hacker-Sprinter 2407 | -7/Factory | Fabricated C-17 Slicer? 2449 | -7/Factory | Discovered new exit (range 4) 2605 | -7/Factory | Learned location of Warlord (-5) 2671 | -7/Factory | Learned location of 2 exits from Upper Caves 2676 | -7/Factory | Fabricated B-36 Bruiser (x3) 2776 | -7/Factory | Learned Extension emergency access door positions 2815 | -7/Factory | Learned Factory stockpile data 2838 | -7/Factory | Identified exit to Storage 2838 | -7/Factory | Identified exit to Lower Caves 2846 | -7/Factory | Discovered new exit (range 16) 2885 | -7/Factory | Identified exit to Factory 2937 | -7/Factory | Learned Extension trap positions 3011 | -7/Factory | Entered Lower Caves 3012 | -7/Lower Caves | Identified exit to Lower Caves 3058 | -7/Lower Caves | Entered another Lower Caves area 3077 | -7/Lower Caves | Attacked by a delusional Derelict stockpiling parts 3083 | -7/Lower Caves | Discovered exit to Factory (range 5) 3172 | -7/Lower Caves | Spotted B-75 Beast 3194 | -7/Lower Caves | Encountered a Warlord checkpoint 3194 | -7/Lower Caves | Discovered new exit (range 10) 3196 | -7/Lower Caves | Entered Data Miner 3196 | -7/Data Miner | Discovered new exit (range 6) 3202 | -7/Data Miner | Met Data Miner 3206 | -7/Data Miner | Learned location of Section 7 (-2) 3206 | -7/Data Miner | Acquired the access code to Warlord's prototype stash 3211 | -7/Data Miner | Received God Mode back door access code from Data Miner 3227 | -7/Data Miner | Interfaced with the Data Conduit 3251 | -7/Data Miner | Entered Proximity Caves 3271 | -6/Proximity Caves | Spotter reported a threat 3271 | -6/Proximity Caves | Spotter reported a threat 3394 | -6/Proximity Caves | Spotter reported a threat 3439 | -6/Proximity Caves | Discovered exit to Factory (range 7) 3440 | -6/Proximity Caves | Entered Factory 3440 | -6/Factory | Evolved 2 slots: Propulsion x1, Utility x1 3442 | -6/Factory | Loaded intel: 258 machine locations 3482 | -6/Factory | Fabricated Surge Thruster (x2) 3536 | -6/Factory | Fabricated Adv. Hacking Suite (x1) 3619 | -6/Factory | Discovered new exit (range 10) 3621 | -6/Factory | Identified exit to Extension 3621 | -6/Factory | Entered Extension 3622 | -6/Extension | Loaded intel: 21 trap records 3624 | -6/Extension | Loaded intel: 43 machine locations 3772 | -6/Extension | Rescued a captive Derelict 3774 | -6/Extension | Rescued a captive Derelict 3781 | -6/Extension | Rescued a captive Derelict 3783 | -6/Extension | Rescued a captive Derelict 3821 | -6/Extension | Rescued a captive Derelict 3827 | -6/Extension | Rescued a captive Derelict 3903 | -6/Extension | Lost 8 allies 3913 | -6/Extension | Spotted B-75 Beast 3914 | -6/Extension | Spotted B-75 Beast 3918 | -6/Extension | Rescued a captive Derelict 3935 | -6/Extension | Rescued A7 3944 | -6/Extension | Rescued a captive Derelict 3944 | -6/Extension | Rescued a captive Derelict 3946 | -6/Extension | Rescued a captive Derelict 3971 | -6/Extension | Rescued a captive Derelict 3972 | -6/Extension | Rescued a captive Derelict 3978 | -6/Extension | Rescued a captive Derelict 4007 | -6/Extension | Rescued a captive Derelict 4009 | -6/Extension | Rescued a captive Derelict 4055 | -6/Extension | Discovered new exit (range 10) 4055 | -6/Extension | Discovered new exit (range 6) 4070 | -6/Extension | Identified exit to Cetus 4100 | -6/Extension | Disrupted transfer network 4100 | -6/Extension | Entered Cetus 4100 | -6/Cetus | Accompanied by 6 allies (A7) 4101 | -6/Cetus | Loaded intel: 24 machine locations 4105 | -6/Cetus | Acquired a Cetus Manufacturing Module code from A7 4115 | -6/Cetus | Spotted Cetus Guard 4116 | -6/Cetus | Spotted Cetus Guard 4120 | -6/Cetus | Spotted Cetus Guard 4121 | -6/Cetus | Spotted Cetus Guard 4122 | -6/Cetus | Allies destroyed Cetus Guard 4133 | -6/Cetus | Allies destroyed Cetus Guard 4140 | -6/Cetus | Allies destroyed Cetus Guard 4147 | -6/Cetus | Allies destroyed Cetus Guard 4174 | -6/Cetus | Started Cetus Manufacturing Module 4199 | -6/Cetus | Manufactured an Enhanced Grunt 4224 | -6/Cetus | Manufactured an Enhanced Grunt 4227 | -6/Cetus | Escorted A7 to Cetus Mainframe 4249 | -6/Cetus | Manufactured an Enhanced Grunt 4274 | -6/Cetus | Manufactured an Enhanced Grunt 4299 | -6/Cetus | Manufactured an Enhanced Grunt 4322 | -6/Cetus | Cetus Manufacturing Module disabled 4342 | -6/Cetus | Found a strange terminal 4346 | -6/Cetus | Discovered new exit (range 16) 4349 | -6/Cetus | Identified exit to Archives 4407 | -6/Cetus | Entered Archives 4407 | -6/Archives | Accompanied by 11 allies (A7) 4408 | -6/Archives | Loaded intel: 8 machine locations 4413 | -6/Archives | Received a hacking code to weaken MAIN.C 4440 | -6/Archives | Discovered new exit (range 15) 4442 | -6/Archives | Discovered new exit (range 16) 4450 | -6/Archives | Discovered new exit (range 15) 4463 | -6/Archives | Identified exit to Hub_04(d) 4522 | -6/Archives | Entered Hub_04(d) 4522 | -6/Hub_04(d) | Accompanied by 9 allies 4523 | -6/Hub_04(d) | Loaded intel: 101 machine locations 4548 | -6/Hub_04(d) | Identified exit to Factory 4551 | -6/Hub_04(d) | Network Hub disabled 4555 | -6/Hub_04(d) | Network Hub disabled 4564 | -6/Hub_04(d) | Network Hub disabled 4576 | -6/Hub_04(d) | Spotted Lightning 4577 | -6/Hub_04(d) | Spotted Lightning 4577 | -6/Hub_04(d) | Spotted Lightning 4577 | -6/Hub_04(d) | Entered Factory 4577 | -5/Factory | Evolved 2 slots: Propulsion x1, Utility x1 4578 | -5/Factory | Loaded intel: 254 machine locations 4733 | -5/Factory | Discovered new exit (range 11) 4735 | -5/Factory | Identified exit to Upper Caves 4811 | -5/Factory | Repaired Surge Thruster 4850 | -5/Factory | Repaired Surge Thruster 4902 | -5/Factory | Repaired Nuclear Pulse Thruster 4921 | -5/Factory | Entered Upper Caves 4922 | -5/Upper Caves | Identified exit to Upper Caves 4964 | -5/Upper Caves | Encountered a Warlord checkpoint 5052 | -5/Upper Caves | Found Alien Artifact 5056 | -5/Upper Caves | Entered another Upper Caves area 5057 | -5/Upper Caves | Identified exit to Warlord 5060 | -5/Upper Caves | Discovered new exit (range 14) 5116 | -5/Upper Caves | Encountered a Warlord checkpoint 5132 | -5/Upper Caves | Entered Warlord 5235 | -5/Warlord | Found Prototype Device 5235 | -5/Warlord | Identified Minesniffer Drone Bay 5261 | -5/Warlord | Visited the Vortex Lab 5262 | -5/Warlord | Found Prototype Piercing Weapon 5262 | -5/Warlord | Identified Vortex Lance 5273 | -5/Warlord | Warlord's base attacked by MAIN.C 5280 | -5/Warlord | Met Warlord 5289 | -5/Warlord | Opened Warlord's prototype stash 5556 | -5/Warlord | Lost 5 allies 5572 | -5/Warlord | Spotted B-86 Titan 5623 | -5/Warlord | Warlord forces counterattacked 5705 | -5/Warlord | Spotted Executioner 5725 | -5/Warlord | Discovered new exit (range 15) 5727 | -5/Warlord | Identified exit to Proximity Caves 5728 | -5/Warlord | Entered Proximity Caves 5734 | -4/Proximity Caves | Identified exit to Factory 5751 | -4/Proximity Caves | Lost 7 allies 5776 | -4/Proximity Caves | Entered Factory 5776 | -4/Factory | Evolved 2 slots: Propulsion x1, Utility x1 5777 | -4/Factory | Loaded intel: 291 machine locations 5929 | -4/Factory | Fabricated Imp. Surge Thruster (x2) 5972 | -4/Factory | Discovered new exit (range 15) 5990 | -4/Factory | Identified exit to Research 6032 | -4/Factory | Identified exit to Upper Caves 6064 | -4/Factory | Build established: Hacker-Scout 6191 | -4/Factory | Learned location of 1 exit from Research 6246 | -4/Factory | Learned Armory fabricator intel 6290 | -4/Factory | Learned Quarantine non-interactive machine intel 6325 | -4/Factory | Learned Armory security intel 6350 | -4/Factory | Learned Quarantine garrison access intel 6364 | -4/Factory | Learned location of 1 exit from Proximity Caves 6390 | -4/Factory | Loaded intel: 4 scanalyzer locations 6427 | -4/Factory | Learned Research trap positions 6475 | -4/Factory | Learned Armory trap positions 6534 | -4/Factory | Loaded intel: 4 garrison access locations 6544 | -4/Factory | Entered Upper Caves 6611 | -4/Upper Caves | Attracted the attention of an 0b10 outpost 6653 | -4/Upper Caves | Learned Research terminal intel 6801 | -4/Upper Caves | Discovered new exit (range 4) 6801 | -4/Upper Caves | Identified exit to Upper Caves 6802 | -4/Upper Caves | Entered another Upper Caves area 6845 | -4/Upper Caves | Entered a destroyed Warlord outpost 6870 | -4/Upper Caves | Discovered new exit (range 7) 6873 | -4/Upper Caves | Identified exit to Zhirov 6874 | -4/Upper Caves | Entered Zhirov 6874 | -4/Zhirov | Discovered new exit (range 3) 6880 | -4/Zhirov | Met Zhirov 6890 | -4/Zhirov | Zhirov requested help retrieving the SGEMP Prototype 6895 | -4/Zhirov | Found Alien Artifact 6895 | -4/Zhirov | Identified Integrated Dissipator 6895 | -4/Zhirov | Installed Integrated Dissipator, increased core heat dissipation (+20) 6901 | -4/Zhirov | Found Alien Artifact 6932 | -4/Zhirov | Identified exit to Proximity Caves 6932 | -4/Zhirov | Entered Proximity Caves 7003 | -3/Proximity Caves | Entered Research 7003 | -3/Research | Evolved 2 slots: Power x1, Utility x1 7004 | -3/Research | Identified exit to Research 7005 | -3/Research | Loaded intel: 105 trap records 7006 | -3/Research | Loaded intel: 129 machine locations 7007 | -3/Research | Loaded intel: 24 terminal locations 7090 | -3/Research | Fabricated Quantum Reactor (x2) 7174 | -3/Research | Identified exit to Armory 7174 | -3/Research | Identified exit to Testing 7187 | -3/Research | Intercept squad dispatched 7200 | -3/Research | Spotted Tracker 7202 | -3/Research | Identified exit to Garrison 7202 | -3/Research | Entered Garrison 7203 | -3/Garrison | Loaded intel: 38 machine locations 7209 | -3/Garrison | Spotted B-86 Titan 7216 | -3/Garrison | Triggered checkpoint 7216 | -3/Garrison | Triggered checkpoint 7222 | -3/Garrison | Discovered new exit (range 10) 7223 | -3/Garrison | Identified exit to Research 7224 | -3/Garrison | Entered Research 7225 | -3/Research | Loaded intel: 108 machine locations 7297 | -3/Research | Entered Armory 7298 | -3/Armory | Loaded intel: 50 trap records 7300 | -3/Armory | Loaded intel: 87 machine locations 7301 | -3/Armory | Loaded intel: 8 fabricator locations 7385 | -3/Armory | Fabricated Exp. Heat Sink? 7475 | -3/Armory | Spotted B-86 Titan 7476 | -3/Armory | Identified Transdimensional Reconstructor 7476 | -3/Armory | Warped through subspace to slip node 7476 | -3/Armory | Discovered new exit (range 1) 7476 | -3/Armory | Identified exit to Lab 7478 | -3/Armory | Entered Lab 7478 | -3/Lab | Discovered exit to Research (range 9) 7481 | -3/Lab | Hidden lab's door opened automatically 7481 | -3/Lab | Sensor layout match revealed 7482 | -3/Lab | Gained access to the hidden lab's interior 7557 | -3/Lab | Decrypted terminal 7557 | -3/Lab | Acquired modification code for an L2 power cell 7564 | -3/Lab | Found Prototype Energy Cannon 7564 | -3/Lab | Identified Potential Cannon 7568 | -3/Lab | Found Prototype Energy Cannon 7568 | -3/Lab | Identified Warp Cannon 7571 | -3/Lab | Found Prototype Protection 7571 | -3/Lab | Identified Hvy. Regenerative Plating 7575 | -3/Lab | Found Quantum Router 7584 | -3/Lab | Found Alien Artifact 7591 | -3/Lab | Found Alien Artifact 7591 | -3/Lab | Identified Integrated Reactor 7591 | -3/Lab | Installed Integrated Reactor, increased core energy generation (+10) 7600 | -3/Lab | Found Transdimensional Reconstructor 7610 | -3/Lab | Found Prototype Special Weapon 7610 | -3/Lab | Identified Gui. Remote Datajack 7750 | -3/Lab | Found Alien Artifact 7755 | -3/Lab | Decrypted terminal 7757 | -3/Lab | Entered Research 7757 | -2/Research | Warlord forces began assault on 0b10 7757 | -2/Research | Evolved 2 slots: Propulsion x1, Utility x1 7758 | -2/Research | Loaded intel: 116 machine locations 7770 | -2/Research | Identified exit to Quarantine 7836 | -2/Research | Repaired Imp. Surge Thruster 7851 | -2/Research | Discovered new exit (range 8) 7857 | -2/Research | Build established: Wizard-Scout 7867 | -2/Research | Research machine network offline 7926 | -2/Research | Discovered new exit (range 5) 7926 | -2/Research | Identified exit to Access 7964 | -2/Research | Met up with Warlord 7966 | -2/Research | Spotted B-90 Cyclops 8019 | -2/Research | Entered Quarantine 8020 | -2/Quarantine | Loaded intel: 73 machine locations 8021 | -2/Quarantine | Loaded intel: 52 non-interactive machine locations 8022 | -2/Quarantine | Loaded intel: 1 garrison access location 8033 | -2/Quarantine | Discovered exit to Access (range 13) 8042 | -2/Quarantine | Found Alien Artifact 8106 | -2/Quarantine | Learned Research recycling unit intel 8134 | -2/Quarantine | Identified Dimensional Node Initializer 8134 | -2/Quarantine | Identified Core Expander 8134 | -2/Quarantine | Identified Subatomic Replicator 8134 | -2/Quarantine | Identified Core Reset Matrix 8163 | -2/Quarantine | Learned Research trap positions 8210 | -2/Quarantine | Learned 8 Research zone layouts 8223 | -2/Quarantine | Spotted GL-5DV(L) 8234 | -2/Quarantine | Spotted Fortress 8244 | -2/Quarantine | Discovered new exit (range 6) 8244 | -2/Quarantine | Discovered new exit (range 7) 8244 | -2/Quarantine | Identified exit to Section 7 8245 | -2/Quarantine | Identified exit to Protoforge 8270 | -2/Quarantine | Entered Section 7 8271 | -2/Section 7 | Loaded intel: 156 machine locations 8280 | -2/Section 7 | Found Alien Artifact 8287 | -2/Section 7 | Found Integrated Dissipator 8287 | -2/Section 7 | Installed Integrated Dissipator, increased core heat dissipation (+20) 8309 | -2/Section 7 | Found Alien Artifact 8309 | -2/Section 7 | Identified Integrated Mediator 8309 | -2/Section 7 | Installed Integrated Mediator, increased core attachment efficiency 8310 | -2/Section 7 | Identified Integrity Redistributor 8310 | -2/Section 7 | Used Integrity Redistributor, redistributed integrity from core (-25) 8379 | -2/Section 7 | Discovered exit to Access (range 14) 8384 | -2/Section 7 | Initialized slip node 8424 | -2/Section 7 | Modified the L2 Power Cell with code from the hidden lab 8433 | -2/Section 7 | Found Transdimensional Reconstructor 8435 | -2/Section 7 | Found Transdimensional Reconstructor 8442 | -2/Section 7 | Found Alien Energy Cannon 8469 | -2/Section 7 | Spotted B-99 Colossus 8482 | -2/Section 7 | Found Alien Artifact 8482 | -2/Section 7 | Identified LRC Energy Well 8482 | -2/Section 7 | Installed LRC Energy Well, increased energy storage capacity (+250) 8484 | -2/Section 7 | Found Alien Artifact 8484 | -2/Section 7 | Identified LRC Armor 8484 | -2/Section 7 | Installed LRC Armor, increased core integrity (+250) 8500 | -2/Section 7 | Intercept squad dispatched 8514 | -2/Section 7 | Spotted Tracker 8515 | -2/Section 7 | Warped through subspace to slip node 8515 | -2/Section 7 | Spotted Combat Programmer 8516 | -2/Section 7 | Entered Access 8516 | -1/Access | Evolved 2 slots: Weapon x2 8517 | -1/Access | Loaded intel: 117 machine locations 8555 | -1/Access | Fabricated Imp. Surge Thruster (x2) 8568 | -1/Access | Energy Cycler disabled 8581 | -1/Access | Discovered new exit (range 17) 8586 | -1/Access | Installed Core Expander, added new Utility slot 8603 | -1/Access | Identified exit to Command 8603 | -1/Access | Entered Command 8604 | -1/Command | Loaded intel: 59 machine locations 8624 | -1/Command | Spotted B-99 Colossus 8660 | -1/Command | Phase Generator disabled 8822 | -1/Command | Repaired Exp. Heat Sink? 8827 | -1/Command | Disengaged cave seal 8827 | -1/Command | Derelicts emerged from the dark tunnel 8827 | -1/Command | Welcomed Warlord to Command 8853 | -1/Command | P-80 Master assimilated allied 2T-EHU(s) 8892 | -1/Command | Lost 7 allies 8957 | -1/Command | Spotted B-99 Colossus 8966 | -1/Command | Rewired B-99 Colossus 8994 | -1/Command | Discovered new exit (range 12) 9004 | -1/Command | Lost 4 allies 9048 | -1/Command | Spotted M Guard 9049 | -1/Command | Spotted M Guard 9058 | -1/Command | Spotted Combat Programmer 9076 | -1/Command | Combat Programmer assimilated allied 8X-540(L) 9077 | -1/Command | Spotted 8X-540(L) 9079 | -1/Command | Combat Programmer assimilated allied Colossus 10a 9080 | -1/Command | Combat Programmer assimilated allied N9-0GR(i) 9083 | -1/Command | Spotted Combat Programmer 9120 | -1/Command | Disengaged cave seal 9120 | -1/Command | Derelicts emerged from the dark tunnel 9143 | -1/Command | Met MAIN.C 9143 | -1/Command | Hacked MAIN.C using A7's code 9146 | -1/Command | Identified Drained L-Cannon 9147 | -1/Command | 0b10 Conduit disabled 9792 | -1/Command | Used Subatomic Replicator to create Alien Artifact 9795 | -1/Command | Identified Supercharged TR 9795 | -1/Command | Warped through subspace to slip node 9795 | -1/Command | Discovered new exit (range 5) 9803 | -1/Command | Identified exit to Access_0 9803 | -1/Command | Entered Access_0 9804 | -1/Access_0 | Loaded intel: 55 machine locations 9804 | -1/Access_0 | Met Architect 9817 | -1/Access_0 | Spotted Enhanced Programmer 9822 | -1/Access_0 | Spotted Enhanced Programmer 9840 | -1/Access_0 | Spotted Enhanced Programmer 9843 | -1/Access_0 | Subspace Access Node disabled 9848 | -1/Access_0 | A6 warped into view 9859 | -1/Access_0 | Found Alien Artifact 9859 | -1/Access_0 | Identified Core Regenerator 9859 | -1/Access_0 | Used Core Regenerator, restored core integrity (+462) 9919 | -1/Access_0 | Spotted Enhanced Programmer 9921 | -1/Access_0 | A5 warped into view 9922 | -1/Access_0 | Spotted Enhanced Programmer 9922 | -1/Access_0 | Started Test 138-B, establishing a local singularity 9923 | -1/Access_0 | Singularity Gate disabled 9942 | -1/Access_0 | System corruption reached 10% 9950 | -1/Access_0 | Core integrity fell below 50% 9954 | -1/Access_0 | Warped through subspace to slip node 9954 | -1/Access_0 | Discovered new exit (range 8) 9968 | *** | Escaped! Last Messages --------------- 09943_ Destabilizing: Core damaged (-92). 09943_ Destabilizing: Core damaged (-55). 09945_ System corrupted: Matter fused (-9). 09950_ Slammed into Earth. 09950_ Adv. Dynamic Insulation System destroyed. 09950_ System corrupted by crushing effect (+2). 09950_ Adv. Signal Interpreter broken. 09950_ Destabilizing: Short circuit. 09950_ Destabilizing: Core damaged (-92). 09951_ Quantum Shear penetrates Wall. 09951_ Quantum Shear penetrates Earth. 09953_ Penetrated by Quantum Shear. 09954_ Warped through subspace, drawn to slip node. 09954_ EXIT=FOUND 09955_ A0_RES: I have more important things to do than play hide-and-seek. Deal with this piece of junk if it returns. 09964_ 7&E%ILVC9CSJ=GC2H&ST47 26ZQWF/FMOW3 [Achievement: Collector] Map ----- +----------------------------------------------------+ | | | | | | | | | | | | | | | | | | | | | | | | | | | | | | | | | ?????????????????????????????????????????????????? | | ?????????????????????????????????????????????????? | | ?????????????????????????????????????????????????? | | ?????????????????????????????????????????????????? | | ?????????????????????????????????????????????????? | | ?????????????????????????????????????????????????? | | ????????????????????????###??????????????????????? | | ???????????????????????## ##?????????????????????? | | ???????????????????????# #?????????????????????? | | ???????????????????????# @ #?????????????????????? | | ??????????????????????## #?????????????????????? | | ??????????????????????# #?????????????????????? | | ??????????????????????# ##?????????????????????? | | ??????????????????????## #?????????????????????? | | ??????????????????????# #?????????????????????? | | ??????????????????????# ##?????????????????????? | | ??????????????????????# < #?????????????????????? | | ??????????????????????# ##?????????????????????? | | ??????????????????????## #??????????????????????? | | ???????????????????????####??????????????????????? | | ?????????????????????????????????????????????????? | | ?????????????????????????????????????????????????? | | ?????????????????????????????????????????????????? | | ?????????????????????????????????????????????????? | | ?????????????????????????????????????????????????? | | ?????????????????????????????????????????????????? | | ?????????????????????????????????????????????????? | | ?????????????????????????????????????????????????? | | ?????????????????????????????????????????????????? | | ?????????????????????????????????????????????????? | | ?????????????????????????????????????????????????? | | ?????????????????????????????????????????????????? | | ?????????????????????????????????????????????????? | | ?????????????????????????????????????????????????? | +----------------------------------------------------+ Best States ------------- Heat Dissipation 118 Energy Generation 59 Energy Capacity 545 Matter Stores 300 Matter Capacity 300 Sight Range 16 Robot Scan Range 16 Terrain Scan Density 10 Power Amplification 30 EM Shielding 4 Armor Coverage 150 Utility Shielding 90 Evasion (%) 78 Recoil Reduction 1 Offensive Hacking 38 Defensive Hacking 32 Authchip Count 2 Item Schematics ----------------- Med. Storage Unit | -10/Materials | Hacked Hacking Suite | -9/Materials | Scanalyzed Autogun | -8/Materials | Scanalyzed Cryofiber Web | -8/Materials | Scanalyzed Surge Thruster | -8/Materials | Hacked Adv. Hacking Suite | -7/Factory | Hacked Lgt. Fission Core | -7/Factory | Hacked Imp. Cooling System | -7/Factory | Hacked Combat Drone Bay | -7/Data Miner | Free Lgt. Regenerative Plating | -7/Data Miner | Free Cld. Aerolev Unit | -7/Data Miner | Free Exp. Targeting Computer | -7/Data Miner | Free Shock Maul | -7/Data Miner | Free Arm. Medium Treads | -7/Data Miner | Free Imp. Kinecellerator | -7/Data Miner | Free Hvy. Phase Cannon | -7/Data Miner | Free Adv. Drone Bay | -7/Data Miner | Free Imp. Launcher Guidance Computer | -7/Data Miner | Free Imp. Surge Thruster | -6/Extension | Hacked Q-thruster | -4/Factory | Hacked Assault Drone Bay | -4/Zhirov | Free Exp. Heat Sink | -4/Zhirov | Free Exp. Optical Array | -4/Zhirov | Free Imp. Arc Thrower | -4/Zhirov | Free Enh. Nova Cannon | -3/Armory | Hacked Lgt. Quantum Reactor | -2/Quarantine | Hacked Cld. Q-thruster | -2/Section 7 | Hacked Robot Schematics ------------------ G-47 Trooper | -7/Data Miner | Free L-41 Fighter | -7/Data Miner | Free M-14 Sweeper | -7/Data Miner | Free E-15 Imp | -7/Data Miner | Free B-48 Gladiator | -7/Data Miner | Free A-15 Conveyor | -7/Data Miner | Free Fabricated ------------ C-17 Slicer | x3 | -7/Factory | Preloaded B-36 Bruiser | x3 | -7/Factory | Preloaded Surge Thruster | x2 | -6/Factory | Authchip Adv. Hacking Suite | x1 | -6/Factory | Authchip Imp. Surge Thruster | x2 | -4/Factory | Authchip Quantum Reactor | x2 | -3/Research | Preloaded Exp. Heat Sink | x1 | -3/Armory | Authchip Imp. Surge Thruster | x2 | -1/Access Repaired ---------- Surge Thruster | 7% | -5/Factory Surge Thruster | 50% | -5/Factory Nuclear Pulse Thruster | 60% | -5/Factory Imp. Surge Thruster | 36% | -2/Research Exp. Heat Sink | 25% | -1/Command Alien Tech Used ----------------- Integrated Dissipator Transdimensional Reconstructor Integrated Reactor Integrated Mediator Integrity Redistributor Dimensional Node Initializer LRC Energy Well LRC Armor Core Expander Drained L-Cannon Subatomic Replicator Supercharged TR Core Regenerator Achievements -------------- Big Bang Collector Challenges ------------ None Game ------ Seed CoolingFusionSteel Manual? 0 Play Time 04:35:27 Cumulative 298.4 hours Start 2025.07.02 @ 11:00:26 End 2025.07.02 @ 17:08:29 Sessions 3 Manual Loads 0 Difficulty Rogue Special Mode None Game No. 145 Rogue 145 Adventurer 0 Explorer 0 Win Type 0 Total 20 Types 8/0/5/1/4/1/0/0/0/1 Lore% 86 Gallery% 75 Achievement% 73 Wizard Run 0 Options --------- Layout 1 ASCII 0 Keyboard 0 Movement Numpad Keybinds 0 Fullscreen 1 Font 24/Smallcaps Map View 50x35 Zoom Use 0% Tactical HUD 1 Map Filters NONE Filters NONE Steam 1 RUN: da3204f9-7673-48b1-8dd4-535f338f4577